{"text_format":"1","workbook":"xlsx","n_sheets":1,"sheets":["ORÇAMENTOS"],"not_rendered":{"charts":0,"images":0,"macros":1,"external_links":0,"defined_names":0,"comments":0,"pivot_tables":0},"unopened":[],"bounds":{"document_bytes":16777216,"sheet_cells":100000,"rows_first":2000,"rows_last":500,"rows_between":2000,"halvings":0,"cell_chars":16384,"cell_head_chars":4096},"cells_cut":0,"cells_raw":0,"read":"whole","date_system":"1900"}

{"sheet":"ORÇAMENTOS","index":0,"n_rows":326,"n_cols":84,"rows_kept":326,"cut":false,"hidden":false,"merged":[[0,0,0,4]]}
["Licitação de Ferramentas"]
["CÓDIGO","Item","QTDE","UN","ESPECIFICAÇÃO","PARAFUSOS NORMA D.I.N","CRV PARAFUSOS","PAFER","COMERCIO DE PARAFUSOS E FERRAGENS BERTOLDI LTDA\t\t\t\t\t","KAEFER","MATTES","VIRA COMERCIAL","REI DAS FERRAMENTAS ","COMERCIAL ANDREOLA","HERVAL PEÇAS E FERRAGENS ","TRK COMÉRCIO VAREJISTA DE FERRAGENS E FERRAMENTAS LTDA","WEST TOOLS","GRAVIA","AGROBILL","OCEANO","DINAMAC","GALPÃO","ANHANGUERA","LOJA DO MECÂNICO","FERRAMENTAS KENNEDY","MAGAZINE LUIZA","AMAZON","AMERICANAS","AFUBRA","EXTRA","BRAFER","BENTO CARRINHOS","TUDO NA MÃO","METAL INDÚSTRIA BRASILEIRA","CARREFOUR","IRMÃOS ABAGE","LF MAQUINAS E FERRAMENTAS ","COFERMETA","HAZZIN","BSHSTORE","INCORZUL","LOJA DO SOQUETE","TUDOPARABORRACHARIA","MADEIRA MADEIRA","SUPER PRO ATACADO","PILAR CONSTRUÇÕES","FERRAMENTAS GERAIS","DOMINIK","MAQSOLDAS","EKAZZA","DUTRA MÁQUINAS","CASAS BAHIA","ZIG FERRAMENTAS","ALCAMAR","AGROMAQI","PALÁCIO DAS FERRAMENTAS","CASA DO SOLDADOR","FERRAMENTAS GERAIS","MARTINELI","A CASA DOS MACACOS","DISAPAR","LIVEFER","FERRAMAC","SUPER PRO ATACADO","REFER COMÉRCIO","COMPRE SEGURANCA","MEGATHOR","AGROTAMA","CASA DO MECANICO","MUNDO DAS FECHADURAS","VIAINOX","ATLAS","ARTE MATERIAIS DE CONSTRUÇÃO","PARAFUSO FACIL ","DPASCHOAL","CAMPAGNARO","AGRÍCOLA SHOP","TRAMONTINA","CCP","SOEDRAL","MÉDIA","ARRED","ARRED X QTDE","TOTAL"]
[null,1,37,"un","Adaptador Redução Impacto ¾ X 1´´",null,null,null,null,null,null,null,null,null,null,null,null,null,null,null,null,null,null,97.11,71.489999999999995,null,null,null,null,null,null,null,null,null,null,null,null,null,null,null,null,null,50,null,null,null,null,null,null,null,null,null,null,null,null,null,null,null,null,null,null,null,null,null,null,null,null,null,null,null,null,null,null,null,null,null,null,null,null,null,{"$f":"AVERAGE(Y3:AQ3)","v":60.744999999999997},{"$f":"ROUND(CC3,2)","v":60.75},{"$f":"CD3*C3","v":2247.75},{"$f":"SUM(CE3:CE326)","v":3197633.9100000011}]
[null,2,37,"un","Adaptador Redução Impacto 1´´ X ¾",null,null,null,null,null,null,null,null,null,null,null,null,null,null,null,null,null,null,null,null,null,null,null,null,null,null,null,null,null,null,null,null,null,null,null,null,null,null,null,null,null,null,null,null,null,150.01,null,151.9,null,null,null,139.79,null,null,null,null,null,null,null,null,null,null,null,null,null,null,null,null,null,null,null,null,null,null,null,{"$f":"AVERAGE(AY4:BE4)","v":147.23333333333332},{"$f":"ROUND(CC4,2)","v":147.22999999999999},{"$f":"CD4*C4","v":5447.5099999999993}]
[null,3,37,"un","Adaptador Redução Impacto 3/4 X 1/2",null,null,null,null,null,null,null,null,null,null,55,null,null,null,null,null,null,null,null,null,null,null,null,null,null,null,null,null,null,null,null,null,null,null,null,null,null,null,null,null,null,null,null,null,null,null,null,null,null,null,null,null,null,null,null,null,null,110.96,62.99,null,null,null,null,null,null,78.11,null,null,null,null,null,null,null,null,null,{"$f":"AVERAGE(BL5:BS5,P5)","v":65.36666666666666},65.37,2418.69]
["990605401 - 1",4,10,"un","Afiador elétrico para correntes de moto serra – 220V",null,null,null,null,null,null,null,null,null,null,null,null,null,null,null,null,null,null,271.89999999999998,268.99,null,null,null,null,null,null,null,null,null,null,null,null,null,null,null,null,null,null,null,null,null,null,null,null,null,null,null,null,null,null,null,null,null,null,null,null,null,null,null,263.2,null,null,null,null,null,null,null,null,null,null,null,null,null,null,null,{"$f":"AVERAGE(X6:BM6)","v":268.02999999999997},268.02999999999997,2680.2999999999997]
["990607972 - 1",5,67,"un","chave de fenda 1/8 x 3\"",null,null,null,null,null,null,null,null,null,null,null,null,null,null,null,null,null,null,null,null,4.99,null,null,null,null,null,null,null,null,null,null,null,null,null,null,null,null,null,null,null,null,null,null,null,null,null,null,null,null,null,null,null,7.02,7.26,null,null,null,null,null,null,null,null,null,null,null,null,null,null,null,null,null,null,null,null,null,{"$f":"AVERAGE(BF7:BG7)","v":7.14},7.14,478.38]
["10118969 - 2",6,29,"un","Alicate bico chato 6” (de abrir)",null,null,null,null,null,null,null,null,32.9,22.5,45,null,null,null,null,null,null,null,31.9,null,32.22,null,null,null,null,null,null,null,null,null,null,null,null,null,null,null,null,null,null,24.49,null,null,null,null,null,null,null,null,null,null,null,null,null,null,null,null,null,null,null,null,null,null,null,null,null,null,null,null,null,null,null,null,null,null,null,{"$f":"AVERAGE(N8:O8,X8:Z8,AS8)","v":28.802},28.8,835.2]
["10118970 - 1",7,63,"un","Alicate de corte diagonal (modelo sueco) – 1.000V",null,null,null,null,null,null,null,null,null,22.1,50,null,null,null,null,null,null,null,173.9,null,196.19,null,null,null,null,null,null,null,null,null,null,180.9,null,null,null,null,null,null,null,null,null,null,null,null,null,null,null,null,null,null,null,null,null,null,null,null,null,null,null,null,null,null,null,null,null,null,null,null,null,null,null,null,null,null,null,{"$f":"AVERAGE(X9:AK9)","v":183.66333333333333},183.66,11570.58]
["990607973 - 1",8,60,"un","Alicate de Pressão triangular 10\" com mordente",null,null,null,null,null,null,null,null,null,31.74,75,null,null,null,null,null,null,null,44.9,null,54.19,null,null,null,null,null,null,null,null,null,null,53.9,null,null,null,null,null,null,null,null,null,null,null,null,null,null,null,null,null,null,null,null,null,null,null,null,null,null,null,null,null,null,null,null,null,null,null,null,null,null,null,null,null,null,null,{"$f":"AVERAGE(AK10,X10:Z10,O10)","v":46.182500000000005},46.18,2770.8]
["10118973 - 1",9,21,"un","Alicate rebitador manual 10\" – corpo em aço – cabeça giratória – uso profissional",null,null,null,null,null,null,null,null,83.9,null,null,null,null,null,null,null,null,null,114.9,null,119.9,null,null,null,null,null,null,null,null,null,null,209.9,null,null,null,null,null,null,null,null,null,null,null,null,null,null,null,null,null,null,null,null,null,null,null,null,null,null,null,null,null,null,null,null,null,null,null,null,null,null,null,null,null,null,null,{"$f":"AVERAGE(X11:Z11,N11)","v":106.23333333333335},106.23,2230.83]
["10118975 - 1",10,95,"un","Alicate universal 8” – em aço, com cabo isolado (1.000V) e anti deslizante",null,null,null,null,null,null,null,null,45.9,24.95,45,null,null,null,null,null,null,null,null,24.99,null,null,null,null,null,null,null,null,null,null,null,null,null,null,null,null,null,null,null,null,null,null,null,null,null,null,null,null,null,null,33.5,null,null,38.72,null,null,null,null,null,null,null,null,null,null,null,null,null,null,null,null,null,null,null,null,null,{"$f":"AVERAGE(BD12:BG12,Y12,O12)","v":30.54},30.54,2901.2999999999997]
["990607974 - 1",11,74,"un","Ancinho leve 14 dentes com cabo 150 cm",null,null,null,null,null,null,null,null,20.5,21,null,null,null,null,null,null,null,null,59.9,null,null,null,null,null,null,null,null,null,null,63.73,null,null,null,null,null,null,null,null,null,null,null,null,null,null,null,49.31,null,null,null,null,null,null,null,null,null,null,null,null,null,null,null,null,null,null,null,null,null,null,null,null,null,null,null,null,null,{"$f":"AVERAGE(AY13,AI13,X13)","v":57.646666666666668},57.65,4266.0999999999995]
["990605402 - 1",12,6,"un","APARELHO DE SOLDA ARCO ELÉTRICO 500 AMPERES ELETRODO/TIG",null,null,null,null,null,null,null,null,null,null,null,null,null,null,null,null,null,null,null,null,null,null,null,null,null,null,null,null,null,null,null,null,null,null,null,null,null,null,null,null,null,null,null,14764.76,4949.84,null,null,null,null,null,17735.900000000001,null,null,null,null,null,null,null,null,null,null,null,null,null,null,null,null,null,null,null,null,null,null,null,null,{"$f":"AVERAGE(BD14,AW14)","v":16250.330000000002},16250.33,97501.98]
["990605402 - 2",13,4,"un","APARELHO DE SOLDA MIG 500 AMPERES COM TOCHA RESFRIADA",null,null,null,null,null,null,null,null,null,null,null,null,null,null,null,null,null,null,22999.9,null,null,null,null,null,null,null,null,null,null,null,null,null,null,null,null,null,null,null,null,null,null,null,null,null,null,null,null,null,null,null,null,null,null,null,null,25828.07,27999,null,null,null,null,null,null,null,null,null,null,null,null,null,null,null,null,null,null,{"$f":"AVERAGE(BI15:BJ15,X15)","v":25608.99},25608.99,102435.96]
["10106911 - 4",14,57,"un","Arame solda mig 1,2mm - tubular rolo 15 kg",null,null,null,null,null,null,null,null,null,152.4,null,null,null,null,null,null,null,null,null,159.09,null,null,null,null,null,null,null,null,null,null,null,null,null,null,null,null,null,null,null,159.99,null,null,null,null,null,null,null,null,null,null,208.26,null,null,null,null,null,null,null,null,null,null,null,null,null,null,null,null,null,null,null,null,null,null,null,null,{"$f":"AVERAGE(BD16,AS16,Y16,O16)","v":169.935},169.94,9686.58]
["990607975 - 1",15,17,"un","Arco de serra 12 tubular fechado as-123",null,null,null,null,null,null,null,null,null,14.57,40,null,null,null,null,null,null,null,21.58,null,25,null,null,null,null,null,null,null,null,null,null,null,null,null,null,null,null,null,null,null,null,25.99,null,null,null,null,null,null,null,null,null,null,null,null,null,null,null,null,null,null,null,null,null,null,null,null,null,null,null,null,null,null,null,null,null,{"$f":"AVERAGE(AU17,X17:Z17)","v":24.189999999999998},24.19,411.23]
["990607976 - 1",16,57,"un","Aro com Pneu e Câmara para Carrinho Completo, tubo 1.1/4” para eixo de 1\" para carrinho de mão, pneu 3,25 x 8, pressão máxima recomendada: 25PSI e aro 8”",null,null,null,null,null,null,null,null,null,null,null,null,null,null,null,null,null,null,null,null,null,54.9,null,null,null,null,null,null,null,null,null,null,null,null,null,null,null,null,41.96,null,null,null,null,null,null,null,null,null,null,null,null,null,null,null,null,null,null,null,null,null,null,null,null,85.12,null,null,null,null,null,null,null,null,null,null,null,{"$f":"AVERAGE(AR18,AA18)","v":48.43},48.43,2760.5099999999998]
["990607977 - 1",17,32,"un","Aspirador de pó industrial inox mínimo 1600 W 220 V",null,null,null,null,null,null,null,null,null,null,3570,null,null,null,null,null,null,null,541.9,559.09,null,499.99,null,null,null,null,null,null,null,null,null,null,null,null,null,null,null,null,null,null,null,null,null,null,null,null,null,null,null,null,null,null,null,null,null,null,null,null,null,null,null,null,null,null,null,null,null,null,null,null,null,null,null,null,null,{"$f":"AVERAGE(X19:AA19)","v":533.66},533.66,17077.12]
["10119612 - 1",18,5,"un","Betoneira – capacidade mínima de 220 litros – motor de, no mínimo, 01 CV / 220V – correia acoplada 02 polos: A-40 / A-22",null,null,null,null,null,null,null,null,null,null,null,null,null,null,null,null,null,null,null,null,null,null,null,null,null,null,null,null,null,null,null,null,null,null,null,null,null,null,null,null,null,null,null,null,null,null,null,null,3949.46,2501.98,2498.9,null,null,null,null,null,null,null,null,null,null,null,null,null,null,null,null,null,null,null,null,null,null,null,null,{"$f":"AVERAGE(BB20:BD20)","v":2983.4466666666667},2983.45,14917.25]
["10119612 - 2",19,4,"un","Betoneira – capacidade mínima de 400 litros – motor de, no mínimo, 02 CV / 220V – correia acoplada 04 polos: A-40 / A-22",null,null,null,null,null,null,null,null,null,null,null,null,null,null,null,null,null,null,4490,null,null,null,null,null,null,null,null,null,null,null,null,null,null,null,null,null,null,null,null,null,null,4490,4858.75,null,null,null,null,null,null,null,null,null,null,null,null,null,null,null,null,null,null,null,null,null,null,null,null,null,null,null,null,null,null,null,null,{"$f":"AVERAGE(AU21:AV21,X21)","v":4612.916666666667},4612.92,18451.68]
[null,20,50,"un","Bico De Contato Longo Oximig 1,20Mm",null,null,null,null,null,null,null,null,null,null,null,null,null,null,null,null,null,null,null,null,null,null,null,null,null,null,null,null,null,null,null,13.9,null,null,null,null,null,null,null,null,null,null,17.5,null,null,null,null,null,null,null,16.48,null,null,null,null,null,null,null,null,null,null,null,null,null,null,null,null,null,null,null,null,null,null,null,null,{"$f":"AVERAGE(BD22,AV22,AK22)","v":15.96},15.96,798]
["990605403 - 1",21,24,"un","Bico prendedor para encher pneus universal",null,null,null,null,null,null,null,null,null,null,30,null,null,null,null,null,null,null,10.9,null,null,null,null,null,null,null,null,null,null,null,null,null,null,null,null,null,null,null,null,null,null,null,null,null,null,17.010000000000002,null,null,null,null,null,null,null,9.91,null,null,null,null,null,null,null,null,null,null,null,null,null,null,null,null,null,null,null,null,null,{"$f":"AVERAGE(BG23,X23)","v":10.405000000000001},10.41,249.84]
["990608067 - 1",22,48,"un","BITS FENDA 6-8 mm",null,null,null,null,null,null,null,null,null,null,null,null,null,null,null,null,null,null,9.57,12.49,null,null,null,null,null,null,null,null,null,null,null,null,null,null,null,null,null,null,null,null,null,null,null,null,null,null,null,null,null,null,null,null,null,null,null,null,null,null,null,null,null,null,null,null,null,null,null,null,null,null,null,null,null,null,null,{"$f":"AVERAGE(X24:Y24)","v":11.030000000000001},11.03,529.43999999999994]
["990608068 - 1",23,31,"un","BITS PHILIPS DUPLA PH2 75MM",null,null,null,null,null,null,null,null,null,null,null,null,null,null,null,null,null,null,null,null,"R$                            13,68\n",null,null,null,null,null,null,null,null,null,null,null,null,null,null,11.77,16.37,null,null,null,null,null,null,null,null,null,null,null,null,null,null,null,null,null,null,null,null,null,null,null,null,null,null,null,null,null,null,null,null,null,null,null,null,null,null,{"$f":"AVERAGE(AO25:AP25,Z25)","v":14.07},14.07,436.17]
["990605404 - 1",24,102,"un","Bocal para tocha solda MIG",null,null,null,null,null,null,null,null,null,null,55,null,null,null,null,null,null,null,10.99,null,"R$                            13,42\n",null,null,null,null,null,null,null,null,null,null,null,null,null,null,null,null,null,null,null,null,null,null,null,null,null,null,null,null,null,null,null,14.43,null,null,null,null,null,null,null,null,null,null,null,null,null,null,null,null,null,null,null,null,null,null,{"$f":"AVERAGE(BF26,X26:Z26)","v":12.71},12.71,1296.42]
["990605405 - 1",25,60,"un","Boina de lã de carneiro para polimento 8”",null,null,null,null,null,null,null,null,null,null,150,null,null,null,null,null,null,null,null,28.79,23.9,25.18,null,null,null,null,null,null,null,null,null,null,null,null,null,null,null,null,null,null,null,null,null,null,null,null,null,null,null,null,null,null,null,null,null,null,null,null,null,null,null,null,null,null,null,null,null,null,null,null,null,null,null,null,null,{"$f":"AVERAGE(Y27:AA27)","v":25.956666666666667},25.96,1557.6000000000001]
["99060200 - 12",26,93,"un","Broca aço rápido 10 mm sem carbono",null,null,null,null,null,null,null,null,null,null,28,38.18,null,null,null,null,null,null,22.99,null,null,null,null,null,null,null,null,19.75,null,null,null,null,null,null,null,null,null,null,null,null,null,20.99,null,null,null,null,null,null,null,null,null,null,null,null,null,null,null,null,null,null,null,null,null,null,null,null,null,null,null,null,null,null,null,null,null,{"$f":"AVERAGE(AU28,AG28,X28,P28)","v":22.932499999999997},22.93,2132.4899999999998]
["99060200 - 13",27,91,"un","Broca aço rápido 11 mm sem carbono",null,null,null,null,null,null,null,null,null,null,34,42.09,null,null,null,null,null,null,32.99,23.99,17.45,null,null,null,null,null,null,null,null,null,null,null,null,null,null,null,null,null,null,null,null,null,null,null,null,null,null,null,null,null,null,null,null,null,null,null,null,null,null,null,null,null,null,null,null,null,null,null,null,null,null,null,null,null,null,{"$f":"AVERAGE(X29:Y29,P29:Q29)","v":33.267499999999998},33.270000000000003,3027.57]
["99060200 - 14",28,92,"un","Broca aço rápido 12 mm sem carbono",null,null,null,null,null,null,null,null,null,null,40,52.37,null,null,null,null,null,null,32.99,null,null,null,null,null,null,null,null,null,null,null,null,null,null,null,null,null,null,null,null,null,null,null,null,null,null,41.71,null,null,null,null,null,null,null,null,null,null,null,null,null,null,null,null,null,null,null,null,null,null,null,null,null,null,null,null,null,{"$f":"AVERAGE(AY30,X30,P30:Q30)","v":41.767499999999998},41.77,3842.84]
["99060200 - 15",29,90,"un","Broca aço rápido 13 mm sem carbono",null,null,null,null,null,null,null,null,null,null,38,56.3,null,null,null,null,null,null,42.99,null,42.38,null,null,null,null,null,null,null,null,null,null,null,null,null,null,null,null,null,null,null,null,null,null,null,null,null,null,null,null,null,null,null,null,null,null,null,null,null,null,null,null,null,null,null,null,null,null,null,null,null,null,null,null,null,null,{"$f":"AVERAGE(X31:Z31,P31:Q31)","v":44.917500000000004},44.92,4042.8]
["99060200 - 16",30,90,"un","Broca aço rápido 14 mm sem carbono",null,null,null,null,null,null,null,null,null,null,90,75.02,null,null,null,null,null,null,34.9,null,21.9,null,null,null,null,null,null,null,null,null,null,null,null,null,null,null,null,null,null,null,null,null,null,null,null,null,null,null,null,null,null,null,null,null,null,null,null,null,null,null,null,null,null,null,null,null,null,null,null,null,null,null,null,null,null,{"$f":"AVERAGE(X32:Z32,)","v":18.933333333333334},18.93,1703.7]
["99060200 - 17",31,49,"un","Broca aço rápido 16 mm sem carbono",null,null,null,null,null,null,null,null,null,null,null,112.85,null,null,null,null,null,null,47.79,null,36,null,null,null,null,null,null,null,null,null,null,null,null,null,null,null,null,null,null,null,null,null,null,null,null,null,null,null,null,null,null,null,null,null,null,null,null,null,null,null,null,null,null,null,null,null,null,null,null,null,null,null,null,null,null,{"$f":"AVERAGE(X33:Z33)","v":41.894999999999996},41.9,2053.1]
["99060200 - 18",32,46,"un","Broca aço rápido 18 mm sem carbono",null,null,null,null,null,null,null,null,null,null,115,144.11000000000001,null,null,null,null,null,null,144.9,null,null,117.81,null,null,null,null,null,null,null,null,null,null,null,null,null,121.95,null,null,null,null,null,null,null,null,null,null,null,null,null,null,null,null,null,null,null,null,null,null,null,null,null,null,null,null,null,null,null,null,null,null,null,null,null,null,null,{"$f":"AVERAGE(AO34,X34:AA34,P34:Q34)","v":128.75399999999999},128.75,5922.5]
["99060200 - 22",33,78,"un","Broca aço rápido 2 mm sem carbono",null,null,null,null,null,null,null,null,null,null,2.5,4.5,null,null,null,null,null,null,1.99,null,null,null,null,null,null,null,null,2.5,null,null,null,null,null,null,null,null,null,null,null,null,null,null,null,null,null,null,null,null,null,null,null,null,null,null,null,null,null,null,null,null,null,null,null,null,null,null,null,null,null,null,null,null,null,null,null,{"$f":"AVERAGE(AG35,X35,P35)","v":2.33},2.33,181.74]
["99060200 - 19",34,49,"un","Broca aço rápido 20 mm sem carbono",null,null,null,null,null,null,null,null,null,null,150,209.55,null,null,null,null,null,null,197.9,null,null,null,null,null,null,null,null,null,null,null,null,null,null,null,null,null,null,null,null,null,null,null,null,null,null,null,null,null,null,null,51.3,null,null,null,null,null,null,null,null,null,null,null,null,null,null,null,null,null,null,null,null,null,null,null,null,{"$f":"AVERAGE(X36,P36:Q36)","v":185.81666666666669},185.82,9105.18]
["99060200 - 20",35,46,"un","Broca aço rápido 22 mm sem carbono",null,null,null,null,null,null,null,null,null,null,180,259.17,null,null,null,null,null,null,286.89999999999998,null,149.49,null,null,null,null,null,null,null,null,null,null,null,null,null,null,null,null,null,null,null,null,null,null,null,null,null,null,null,null,null,null,null,null,null,null,null,null,null,null,null,null,null,null,null,null,null,null,null,null,null,null,null,null,null,null,{"$f":"AVERAGE(Z37,P37:Q37)","v":196.22000000000003},196.22,9026.1200000000008]
["99060200 - 21",36,85,"un","Broca aço rápido 25 mm sem carbono",null,null,null,null,null,null,null,null,null,null,250,428.12,null,null,null,null,null,null,419.9,null,null,null,null,null,null,null,null,null,null,null,null,null,null,null,null,240.09,null,null,null,null,null,null,null,null,null,null,null,null,null,null,null,null,null,null,null,null,null,null,null,null,null,null,null,null,null,null,null,null,null,null,null,null,null,null,null,{"$f":"AVERAGE(AO38,P38)","v":245.04500000000002},245.05,20829.25]
["99060200 - 23",37,92,"un","Broca aço rápido 3 mm sem carbono",null,null,null,null,null,null,null,null,null,null,3,5.89,null,null,null,null,null,null,2.89,null,2.58,null,null,null,null,null,null,null,null,null,null,null,null,null,null,null,null,null,null,null,null,null,null,null,null,null,null,null,null,null,null,null,null,null,null,null,null,null,null,null,null,null,null,null,null,null,null,null,null,null,null,null,null,null,null,{"$f":"AVERAGE(X39:Z39,P39)","v":2.8233333333333337},2.82,259.44]
["99060200 - 24",38,92,"un","Broca aço rápido 4 mm sem carbono",null,null,null,null,null,null,null,null,null,null,5,7.4,null,null,null,null,null,null,4.99,null,null,null,null,null,null,null,null,null,null,null,6.79,null,null,null,null,null,null,null,null,null,null,null,null,null,null,null,null,null,null,null,null,null,null,null,null,null,null,null,null,null,null,null,null,null,null,null,null,null,null,null,null,null,null,null,null,{"$f":"AVERAGE(AJ40,X40,P40:Q40)","v":6.0449999999999999},6.05,556.6]
["99060200 - 25",39,81,"un","Broca aço rápido 4,5 mm sem carbono",null,null,null,null,null,null,null,null,null,null,7.5,7.9,null,null,null,null,null,null,null,null,null,null,null,null,null,null,null,null,null,null,null,6.89,null,null,null,5.73,null,null,null,null,null,null,null,null,null,null,null,null,null,null,null,null,null,null,null,null,null,null,null,null,null,null,null,null,null,null,null,null,null,null,null,null,null,null,null,{"$f":"AVERAGE(AO41,AK41,P41:Q41)","v":7.0050000000000008},7.01,567.80999999999995]
["99060200 - 26",40,92,"un","Broca aço rápido 5 mm sem carbono",null,null,null,null,null,null,null,null,null,null,7,8.25,null,null,null,null,null,null,5.89,null,null,null,null,null,null,null,null,null,null,null,8.56,null,null,null,null,null,null,null,null,null,null,null,null,null,null,null,null,null,null,null,null,null,null,null,null,null,null,null,null,null,null,null,null,null,null,null,null,null,null,null,null,null,null,null,null,{"$f":"AVERAGE(AJ42,X42,P42:Q42)","v":7.4249999999999998},7.43,683.56]
["99060200 - 27",41,78,"un","Broca aço rápido 5,5 mm sem carbono",null,null,null,null,null,null,null,null,null,null,7,11.15,null,null,null,null,null,null,null,null,null,null,null,null,null,null,null,null,null,null,null,6.39,null,null,null,null,null,null,null,null,null,null,null,null,null,null,null,null,null,null,null,null,null,8.41,null,null,null,null,null,null,null,null,null,null,null,null,null,null,null,null,null,null,null,null,null,{"$f":"AVERAGE(BG43,AK43,P43:Q43)","v":8.2375000000000007},8.24,642.72]
["99060200 - 28",42,91,"un","Broca aço rápido 6 mm sem carbono",null,null,null,null,null,null,null,null,null,null,8,12.2,null,null,null,null,null,null,7.39,null,6.54,null,null,null,null,null,null,null,null,null,null,null,null,null,null,null,null,null,null,null,null,null,null,null,null,null,null,null,null,null,6.8,null,null,null,null,null,null,null,null,null,null,null,null,null,null,null,null,null,null,null,null,null,null,null,null,{"$f":"AVERAGE(BD44,Z44,X44,P44)","v":7.1825000000000001},7.18,653.38]
["99060200 - 29",43,78,"un","Broca aço rápido 6,5 mm sem carbono",null,null,null,null,null,null,null,null,null,null,9,14.1,null,null,null,null,null,null,null,null,13.1,null,11.02,null,null,null,null,null,null,null,null,null,null,null,null,null,null,null,null,null,null,null,null,null,null,null,null,null,null,null,null,null,null,null,null,null,null,null,null,null,null,null,null,null,null,null,null,null,null,null,null,null,null,null,null,{"$f":"AVERAGE(Z45:AB45,P45:Q45)","v":11.805},11.81,921.18000000000006]
["99060200 - 30",44,88,"un","Broca aço rápido 7 mm sem carbono",null,null,null,null,null,null,null,null,null,null,12,16.12,null,null,null,null,null,null,null,null,null,null,15.62,null,null,null,null,null,null,null,null,12.9,null,null,null,null,null,null,null,null,null,null,null,null,null,null,null,null,null,null,null,null,null,null,null,null,null,null,null,null,null,null,null,null,null,null,null,null,null,null,null,null,null,null,null,{"$f":"AVERAGE(AK46,AB46,P46:Q46)","v":14.16},14.16,1246.08]
["99060200 - 31",45,93,"un","Broca aço rápido 8 mm sem carbono",null,null,null,null,null,null,null,null,null,null,13,22.74,null,null,null,null,null,null,null,null,null,null,null,null,null,null,null,16,null,null,null,null,null,null,null,null,null,null,null,null,null,null,null,null,null,null,null,null,null,null,null,null,null,15.23,null,null,null,null,null,null,null,null,null,null,null,null,null,null,null,null,null,null,null,null,null,{"$f":"AVERAGE(BG47,AG47,P47:Q47)","v":16.7425},16.739999999999998,1556.82]
["99060200 - 32",46,81,"un","Broca aço rápido 9 mm sem carbono",null,null,null,null,null,null,null,null,null,null,20,27.05,null,null,null,null,null,null,null,null,16.47,null,16.61,null,null,null,null,null,null,null,null,null,null,null,null,null,null,null,null,null,null,null,null,null,null,null,null,null,null,null,null,null,null,null,null,null,null,null,null,null,null,null,null,null,null,null,null,null,null,null,null,null,null,null,null,{"$f":"AVERAGE(Z48:AB48,P48)","v":17.693333333333332},17.690000000000001,1432.89]
["99060199 - 8",47,52,"un","BROCA CONCRETO SDS PLUS 12 X 210MM",null,null,null,null,null,null,null,null,null,null,20,null,null,null,null,null,null,null,22.99,null,18.3,null,17.510000000000002,null,null,null,null,null,null,null,null,null,null,null,null,null,null,null,null,null,null,null,null,null,null,null,null,null,null,null,null,null,null,null,null,null,null,null,null,null,null,null,null,null,null,null,null,null,null,null,null,null,null,null,null,{"$f":"AVERAGE(X49:AB49,P49)","v":19.7},19.7,1024.3999999999999]
["990607981 - 1",48,53,"un","Broca SDS 10mm",null,null,null,null,null,null,null,null,null,null,10,null,null,null,null,null,null,null,null,null,16.100000000000001,10.09,16,null,null,null,null,null,null,null,null,null,null,null,null,null,null,null,null,null,null,null,null,null,null,null,null,null,null,null,null,null,null,null,null,null,null,null,null,null,null,null,null,null,null,null,null,null,null,null,null,null,null,null,null,{"$f":"AVERAGE(P50:AB50)","v":13.047499999999999},13.05,691.65000000000009]
["990607982 - 1",49,51,"un","Broca SDS 6mm",null,null,null,null,null,null,null,null,null,null,14,null,null,null,null,null,null,null,null,null,11.5,10.76,10.44,null,null,null,null,null,null,null,null,null,null,null,null,null,null,null,null,null,null,null,null,null,null,null,null,null,null,null,null,null,null,null,null,null,null,null,null,null,null,null,null,null,null,null,null,null,null,null,null,null,null,null,null,{"$f":"AVERAGE(P51:AB51)","v":11.674999999999999},11.68,595.67999999999995]
["990607983 - 1",50,30,"un","Broca sds mad/alvenaria 110 x 4,00mm",null,null,null,null,null,null,null,null,null,null,null,null,null,null,null,null,null,null,18.29,null,null,null,null,null,null,null,null,null,null,null,null,null,null,null,null,null,null,null,null,null,null,null,null,null,null,null,null,null,null,null,10.92,null,null,11.62,null,null,null,null,null,null,null,null,null,null,null,null,null,null,null,null,null,null,null,null,null,{"$f":"AVERAGE(BD52:BG52,X52)","v":13.61},13.61,408.29999999999995]
["990607984 - 1",51,30,"un","Broca sds mad/alvenaria 110 x 5,00mm",null,null,null,null,null,null,null,null,null,null,null,null,null,null,null,null,null,null,null,null,10.33,10.9,12.11,null,null,null,null,null,null,null,null,null,null,null,null,null,null,null,null,null,null,null,null,null,null,null,null,null,null,null,null,null,null,null,null,null,null,null,null,null,null,null,null,null,null,null,null,null,null,null,null,null,null,null,null,{"$f":"AVERAGE(Z53:AB53)","v":11.113333333333335},11.11,333.29999999999995]
["990607985 - 1",52,30,"un","Broca sds mad/alvenaria 300 x 10mm",null,null,null,null,null,null,null,null,null,null,null,null,null,null,null,null,null,null,11.99,null,null,null,null,null,null,null,null,null,null,null,null,19.899999999999999,null,null,null,null,null,null,null,null,null,null,null,null,null,17.96,null,null,null,null,null,null,null,null,null,null,null,null,null,null,null,null,null,null,null,null,null,null,null,null,null,null,null,null,null,{"$f":"AVERAGE(AY54,AK54,X54)","v":16.616666666666667},16.62,498.6]
["99060199 - 6",53,30,"un","Broca SDS PLUS 10 x 250mm para concreto.",null,null,null,null,null,null,null,null,null,null,12,null,null,null,null,null,null,null,null,null,null,null,null,null,null,null,null,null,null,null,null,61.9,null,null,null,null,null,null,null,null,null,null,null,null,null,68.31,null,null,null,null,null,null,null,null,null,null,null,null,null,null,null,null,null,null,null,null,null,null,null,null,null,null,null,null,null,{"$f":"AVERAGE(AY55,AK55)","v":65.105000000000004},65.11,1953.3]
["99060199 - 7",54,30,"un","Broca SDS PLUS 18 x 310mm para concreto.",null,null,null,null,null,null,null,null,null,null,420,null,null,null,null,null,null,null,29.59,null,null,null,null,null,null,null,null,null,null,null,null,null,null,null,null,34.049999999999997,null,null,null,null,null,null,null,null,null,null,null,null,null,null,null,null,null,null,null,null,null,null,null,null,null,null,null,null,null,null,null,null,null,null,null,null,null,null,null,{"$f":"AVERAGE(AO56,X56)","v":31.82},31.82,954.6]
["99060199 -10",55,30,"un","BROCA SDS PLUS 6 X 50 X 110MM",null,null,null,null,null,null,null,null,null,null,14,null,null,null,null,null,null,null,null,null,34.85,23.79,33.450000000000003,null,null,null,null,null,null,null,null,null,null,null,null,null,null,null,null,null,null,null,null,null,null,null,null,null,null,null,null,null,null,null,null,null,null,null,null,null,null,null,null,null,null,null,null,null,null,null,null,null,null,null,null,{"$f":"AVERAGE(Z57:AB57)","v":30.696666666666669},30.7,921]
["99060199 - 9",56,30,"un","BROCA SDS PLUS 6,00 X 160 IR",null,null,null,null,null,null,null,null,null,null,12,null,null,null,null,null,null,null,8.2899999999999991,null,null,null,null,null,null,null,null,null,null,null,null,9.89,null,null,11.93,null,null,null,null,null,null,null,null,null,null,null,null,null,null,null,null,null,null,null,null,null,null,null,null,null,null,null,null,null,null,null,null,null,null,null,null,null,null,null,null,{"$f":"AVERAGE(AK58:AN58,X58,P58)","v":10.5275},10.53,315.89999999999998]
["99060199 - 12",57,30,"un","BROCA SDS PLUS 8 X 100 X 160MM",null,null,null,null,null,null,null,null,null,null,13,null,null,null,null,null,null,null,null,null,null,8.19,6.69,null,null,null,null,null,null,null,null,null,null,null,null,null,null,null,null,null,null,null,null,null,null,7.11,null,null,null,null,null,null,null,null,null,null,null,null,null,null,null,null,null,null,null,null,null,null,null,null,null,null,null,null,null,{"$f":"AVERAGE(Q59:CB59)","v":7.3299999999999992},7.33,219.9]
["99060199 - 11",58,30,"un","BROCA SDS PLUS 8,00 X 160 IR",null,null,null,null,null,null,null,null,null,null,11,null,null,null,null,null,null,null,null,12.89,null,null,null,null,null,null,null,null,null,null,null,10.9,null,null,null,null,null,null,null,null,null,null,null,null,null,null,null,null,null,null,null,null,null,null,null,null,null,null,null,null,null,null,null,null,null,null,null,null,null,null,null,null,null,null,null,{"$f":"AVERAGE(F60:CB60)","v":11.596666666666666},11.6,348]
["99060199 - 13",59,30,"un","BROCA SDS PLUS CONCRETO 7 X 110MM",null,null,null,null,null,null,null,null,null,null,8,null,null,null,null,null,null,null,20.99,null,null,null,null,null,null,null,null,null,null,null,null,10.9,null,null,null,null,null,null,null,null,null,null,null,null,null,null,null,null,null,null,null,null,null,null,null,null,null,null,null,null,null,null,null,null,null,null,null,null,null,null,null,null,null,null,null,{"$f":"AVERAGE(Y61:CB61,F61:W61)","v":9.4499999999999993},9.4499999999999993,283.5]
["990607986 - 1",60,69,"un","BROXA (TRINCHA)",null,null,null,null,null,null,null,null,null,null,20,null,null,null,null,null,null,null,7.18,null,null,null,null,null,null,null,null,null,null,null,null,7.79,null,null,null,null,null,null,null,null,null,null,null,null,null,null,null,null,null,null,null,null,null,null,null,null,null,null,null,null,null,null,null,null,null,null,null,null,null,null,null,null,null,null,null,{"$f":"AVERAGE(Q62:CB62)","v":7.4849999999999994},7.49,516.81000000000006]
["990607987 - 1",61,68,"un","BROXA RETANGULAR 160X60MM",null,null,null,null,null,null,null,null,null,null,13,null,null,null,null,null,null,null,null,null,15.9,19.899999999999999,null,null,null,null,null,null,null,null,null,null,null,null,null,null,null,null,null,null,null,null,null,null,null,null,null,null,null,null,null,null,null,null,null,null,null,null,null,null,null,null,null,null,null,null,null,null,null,null,null,null,null,null,null,{"$f":"AVERAGE(F63:CB63)","v":16.266666666666666},16.27,1106.3599999999999]
[null,62,38,"un","Cabo carregador para bateria, com voltagem de 1200amp, compatível para carro, caminhão e moto, com, no mínimo, 2,5 mts de comprimento, contendo 02 cabos, sendo preto, para o polo negativo, e vermelho para o polo positivo, e 4 garras, tipo jacaré, revestidas de cobre. Acompanha bolsa organizadora.",null,null,null,null,null,null,null,null,null,null,60,null,null,null,null,null,null,null,null,null,56.9,69,null,null,null,null,null,null,null,null,null,null,null,null,null,null,null,null,null,null,null,null,null,null,null,null,null,null,null,null,null,null,null,null,null,null,null,null,null,null,null,null,null,null,null,null,null,null,null,null,null,null,null,null,null,{"$f":"AVERAGE(Z64:AA64,P64)","v":61.966666666666669},61.97,2354.86]
["990607988 - 1",63,29,"un","CAÇAMBA P/PINTURA 15L",null,null,null,null,null,null,null,null,null,null,43,null,null,null,null,null,null,null,44.9,null,null,null,null,null,null,null,null,null,null,null,null,null,null,null,null,null,null,null,null,null,null,null,42.5,null,null,null,null,null,null,null,36.590000000000003,null,null,null,null,null,null,null,null,null,null,null,null,null,null,null,null,null,null,null,null,null,null,null,null,{"$f":"AVERAGE(F65:CB65)","v":41.747500000000002},41.75,1210.75]
[null,64,82,"un","Cadeado de Latão com 2 Chaves 20mm",null,null,null,null,null,null,null,null,null,9.4700000000000006,19,null,null,null,null,null,null,null,null,null,14.9,12.9,17.899999999999999,null,null,null,null,null,null,null,null,null,null,null,null,null,null,null,null,null,null,null,null,null,null,null,null,null,null,null,null,null,null,null,null,null,null,null,null,null,null,null,null,null,null,null,null,null,null,null,null,null,null,null,null,{"$f":"AVERAGE(AC66:CB66,Q66:AA66,F66:O66)","v":12.423333333333334},12.42,1018.4399999999999]
[null,65,70,"un","Cadeado de Latão com 2 Chaves 25mm",null,null,null,null,null,null,null,null,null,11.02,23,null,null,null,null,null,null,null,null,null,15.5,16.59,19.899999999999999,null,null,null,null,null,null,null,null,null,null,null,null,null,null,null,null,null,null,null,null,null,null,null,null,null,null,null,null,null,null,null,null,null,null,null,null,null,null,null,null,null,null,null,null,null,null,null,null,null,null,null,null,{"$f":"AVERAGE(AC67:CB67,Q67:AA67,F67:O67)","v":14.37},14.37,1005.9]
[null,66,72,"un","Cadeado de Latão com 2 Chaves 30mm",null,null,null,null,null,null,null,null,null,13.14,25,null,null,null,null,null,null,null,null,null,18.809999999999999,23.84,24.9,null,null,null,null,null,null,null,null,null,null,null,null,null,null,null,null,null,null,null,null,null,null,null,null,null,null,null,null,null,null,null,null,null,null,null,null,null,null,null,null,null,null,null,null,null,null,null,null,null,null,null,null,{"$f":"AVERAGE(P68:CB68,F68:N68)","v":23.137500000000003},{"$f":"ROUND(CC68,2)","v":23.14},{"$f":"CD68*C68","v":1666.08}]
[null,67,60,"un","Cadeado de Latão com 2 Chaves 35mm",null,null,null,null,null,null,null,null,null,17.600000000000001,47,null,null,null,null,null,null,null,null,null,24.17,null,32.9,null,null,null,null,null,null,null,null,null,null,null,null,null,null,null,null,null,null,null,null,null,null,null,null,null,null,null,null,null,null,null,null,null,null,null,null,null,null,null,null,null,null,null,null,null,null,null,null,null,null,null,null,{"$f":"AVERAGE(Q69:CB69,F69:O69)","v":24.89},24.89,1493.4]
[null,68,60,"un","Cadeado de Latão com 2 Chaves 40mm",null,null,null,null,null,null,null,null,null,19.850000000000001,42,null,null,null,null,null,null,null,null,null,24.22,29.89,32.9,null,null,null,null,null,null,null,null,null,null,null,null,null,null,null,null,null,null,null,null,null,null,null,null,null,null,null,null,null,null,null,null,null,null,null,null,null,null,null,null,null,null,null,null,null,null,null,null,null,null,null,null,{"$f":"AVERAGE(Q70:CB70,O70)","v":26.714999999999996},26.72,1603.1999999999998]
[null,69,82,"un","Cadeado de Latão com 2 Chaves 45mm",null,null,null,null,null,null,null,null,null,24.2,50,null,null,null,null,null,null,null,null,null,32.25,27.51,37.9,null,null,null,null,null,null,null,null,null,null,null,null,null,null,null,null,null,null,null,null,null,null,null,null,null,null,null,null,null,null,null,null,null,null,null,null,null,null,null,null,null,null,null,null,null,null,null,null,null,null,null,null,{"$f":"AVERAGE(Q71:CB71,F71:O71)","v":30.465},30.47,2498.54]
[null,70,84,"un","Cadeado de Latão com 2 Chaves 50mm",null,null,null,null,null,null,null,null,null,28.48,48,null,null,null,null,null,null,null,null,null,36.799999999999997,38.69,48,null,null,null,null,null,null,null,null,null,null,null,null,null,null,null,null,null,null,null,null,null,null,null,null,null,null,null,null,null,null,null,null,null,null,null,null,null,null,null,null,null,null,null,null,null,null,null,null,null,null,null,null,{"$f":"AVERAGE(AC72:CB72,Q72:AA72,O72)","v":34.656666666666666},34.659999999999997,2911.4399999999996]
[null,71,65,"un","Cadeado com Segredo de Latão Tamanho 40",null,null,null,null,null,null,null,null,null,null,null,null,null,null,null,null,null,null,null,27.69,45,null,null,null,null,null,null,null,null,null,null,null,null,null,null,29.56,null,null,null,null,null,null,null,null,null,null,null,null,null,null,null,null,null,null,null,null,null,null,null,null,null,null,null,null,null,null,null,null,null,null,null,null,null,null,null,{"$f":"AVERAGE(F73:CB73)","v":34.083333333333336},34.08,2215.1999999999998]
[null,72,69,"un","Cadeado de Latão com 2 Chaves 60mm",null,null,null,null,null,null,null,null,null,47.62,null,null,null,null,null,null,null,null,null,null,57.36,45,67,null,null,null,null,null,null,null,null,null,null,null,null,null,null,null,null,null,null,null,null,null,null,null,null,null,null,null,null,null,null,null,null,null,null,null,null,null,null,null,null,null,null,null,null,null,null,null,null,null,null,null,null,{"$f":"AVERAGE(F74:CB74)","v":54.244999999999997},54.25,3743.25]
[null,73,56,"un","Cadeado Haste Longa de Latão com 2 Chaves 20mm",null,null,null,null,null,null,null,null,null,null,null,null,null,null,null,null,null,null,44.5,null,42.74,null,null,null,null,null,null,null,null,null,null,null,null,null,null,null,null,null,null,null,null,null,null,null,null,null,null,null,null,null,null,null,null,null,null,null,null,null,null,null,null,null,null,null,null,null,null,null,null,null,null,null,null,null,null,{"$f":"AVERAGE(F75:CB75)","v":43.620000000000005},43.62,2442.7199999999998]
[null,74,50,"un","Corrente de aço para cadeado 5 mm x 40 cm.",null,null,null,null,null,null,null,null,null,null,null,null,null,null,null,null,null,null,null,null,16.77,null,16.18,null,null,null,null,null,null,null,null,null,null,null,null,null,null,null,null,null,null,null,null,null,null,null,null,null,null,null,null,null,null,null,null,null,null,null,null,null,null,null,null,null,12.9,null,null,null,null,null,null,null,null,null,null,{"$f":"AVERAGE(F76:CB76)","v":15.283333333333333},15.28,764]
[null,75,57,"un","Cadeado Haste Longa de Latão com 2 Chaves 30/75mm",null,null,null,null,null,null,null,null,null,16.46,31,null,null,null,null,null,null,null,null,null,null,null,null,null,null,null,null,null,null,null,null,null,null,null,null,null,null,null,null,20.69,19.149999999999999,null,null,null,null,null,null,null,null,null,null,null,null,null,null,null,null,null,null,null,null,null,null,null,null,null,null,null,null,null,null,null,null,null,null,{"$f":"AVERAGE(Q77:BH77,F77:O77)","v":18.766666666666669},18.77,1069.8899999999999]
[null,76,52,"un","Cadeado Haste Longa de Latão com 2 Chaves 35/70mm",null,null,null,null,null,null,null,null,null,21.37,47,null,null,null,null,null,null,null,null,24.19,null,null,39.82,null,null,null,null,null,null,null,null,null,null,null,null,null,null,null,null,null,null,null,40.5,null,null,null,null,null,null,null,null,null,null,null,null,null,null,null,null,null,null,null,null,null,null,null,null,null,null,null,null,null,null,null,null,{"$f":"AVERAGE(Q78:CB78,F78:O78)","v":31.470000000000002},31.47,1636.44]
[null,77,50,"un","Esmerilhadeira Bateria 4.1/2 Pol. 8.500 Rpm",null,null,null,null,null,null,null,null,null,28.76,null,null,null,null,null,null,null,null,null,null,null,null,null,null,null,null,null,null,null,null,null,null,null,null,null,null,null,null,null,null,null,null,null,null,null,1177.81,1489,null,null,null,null,null,null,null,null,null,null,null,null,null,null,null,null,null,null,null,null,null,null,null,null,null,null,null,null,{"$f":"AVERAGE(P79:CB79)","v":1333.405},1333.41,66670.5]
[null,78,53,"un","Cadeado Haste Longa de Latão com 2 Chaves 45/50mm",null,null,null,null,null,null,null,null,null,34.450000000000003,null,null,null,null,null,null,null,null,47.99,null,59.91,null,null,null,null,null,null,null,null,null,null,null,null,null,null,null,null,null,57.5,null,null,null,null,null,null,null,null,null,null,null,null,null,null,null,null,null,null,null,null,null,null,null,null,null,null,null,null,null,null,null,null,null,null,null,null,{"$f":"AVERAGE(F80:BH80)","v":49.962499999999999},49.96,2647.88]
[null,79,64,"un","Cadeado Haste Longa de Latão com 2 Chaves 35/75mm",null,null,null,null,null,null,null,null,null,null,null,null,null,null,null,null,null,null,null,null,null,null,null,null,null,42.71,null,null,null,null,null,null,null,null,null,null,null,null,null,32.19,null,35.99,null,null,null,null,null,null,null,null,null,null,null,null,null,null,null,null,null,null,null,null,null,null,null,null,null,null,null,null,null,null,null,null,null,{"$f":"AVERAGE(F81:BH81)","v":36.963333333333338},36.96,2365.44]
[null,80,432,"m","Corrente de aço soldada 8 mm.",null,null,null,null,null,null,null,null,null,null,null,null,null,null,null,null,null,null,null,null,null,35.9,38.009,null,null,null,null,null,null,null,null,null,null,null,null,null,null,null,58.73,null,null,null,null,null,null,null,null,null,null,null,null,null,null,null,null,null,null,null,null,null,null,null,null,null,null,null,null,null,null,null,null,null,null,null,null,{"$f":"AVERAGE(F82:BH82)","v":44.212999999999994},44.21,19098.72]
[null,81,59,"un","Cadeado Haste Longa de Latão com 2 Chaves 45/70mm",null,null,null,null,null,null,null,null,null,null,null,null,null,null,49.9,null,null,null,null,null,null,53.7,null,null,null,null,null,null,null,null,null,null,null,null,null,null,null,null,null,null,null,57.99,null,null,null,null,null,null,null,null,null,null,null,null,null,null,null,null,null,null,null,null,null,null,null,null,null,null,null,null,null,null,null,null,null,{"$f":"AVERAGE(F83:CB83)","v":53.863333333333337},53.86,3177.74]
[null,82,50,"un","Caixa Metálica para Ferramentas, com 5 Gavetas, 50 x 19 x 20 cm",null,null,null,null,null,null,null,null,null,102.21,null,null,null,null,null,null,null,null,null,119.99,null,125.16,null,null,null,null,null,null,null,null,null,null,null,null,null,null,null,null,null,null,null,null,null,null,null,138.51,null,null,null,null,null,null,null,null,null,null,null,null,null,null,null,null,null,null,null,null,null,null,null,null,null,null,null,null,null,{"$f":"AVERAGE(F84:CB84)","v":121.4675},121.47,6073.5]
["990605406 - 1",83,11,"un","Calibrador de pneus - modelo caneta – 10/150 PSI – graduação de 2 em 2 PSI nos 02 lados da régua - cabeçote em zamac, régua de alumínio, corpo de latão cromado",null,null,null,null,null,null,null,null,null,null,null,null,null,null,null,null,null,null,71.900000000000006,50.99,55.71,null,null,null,null,null,null,null,null,null,null,null,null,null,null,null,null,null,null,null,null,null,null,null,null,null,null,null,null,null,null,null,null,null,null,null,null,null,null,null,null,null,null,null,null,null,null,null,null,null,null,null,null,null,null,{"$f":"AVERAGE(F85:CB85)","v":59.533333333333339},59.53,654.83000000000004]
["990605406 - 2",84,11,"un","Calibrador de pneus ar/água – modelo caneta – 10/50 PSI - graduação de 1 em 1 PSI nos 04 lados da régua - cabeçote em zamac, régua de plástico, tubo de latão cromado",null,null,null,null,null,null,null,null,null,null,null,null,null,null,null,null,null,null,null,null,19.98,31.9,24.12,null,null,null,null,null,null,null,null,null,null,null,null,null,null,null,null,null,null,null,null,null,null,null,null,null,null,null,null,null,null,null,null,null,null,null,null,null,null,null,null,null,null,null,null,null,null,null,null,null,null,null,null,{"$f":"AVERAGE(P86:CB86)","v":25.333333333333332},25.33,278.63]
["38012051 - 3",85,83,"un","Carrinho de mão, 01 roda, chassi e braço metálicos, caçamba metálica funda com capacidade mínima de 60 litros, completo.",null,null,null,null,null,null,null,null,null,90,null,null,null,null,null,null,null,null,null,null,181.01,207.41,152.91,null,null,null,null,null,null,null,null,null,null,null,null,null,null,null,null,null,null,null,null,null,null,null,null,null,null,null,null,null,null,null,null,null,null,null,null,null,null,null,null,null,null,null,null,null,null,null,null,null,null,null,null,{"$f":"AVERAGE(P87:CB87)","v":180.4433333333333},180.44,14976.52]
[null,86,6,"un","Carrinho Para Cargas 350kg com 02 rodas, Roda: Pneu Câmara e rolete 3,25/8\"PC; Capacidade de carga: 350 KG ; Pintura a pó na cor azul; Roda PC 3 com rolete; Altura x Largura: 57 cm x 28 cm; Materiais da carrinho: Ferro",null,null,null,null,null,null,null,null,null,null,null,null,null,null,null,null,null,null,null,null,366.86,null,null,null,null,null,null,null,null,342.62,null,null,null,null,null,null,null,null,234.9,null,null,null,null,null,null,null,null,null,null,null,null,null,null,null,null,null,null,null,null,null,null,null,null,null,null,null,null,null,null,null,null,null,null,null,null,{"$f":"AVERAGE(F88:CB88)","v":314.79333333333335},314.79000000000002,1888.7400000000002]
[null,87,2,"un","Carrinho para transporte pesado fabricado com assoalho de chapa de aço carbono, com sistema 5ª roda, dotado de cabo de tração em forma da “T” com articulação. Possui capacidade para 800 Kg, 4 rodas com rolete maciças de 300 x 8”, sendo 2 montadas no eixo e 2 com freio montadas na “5ª roda”. Medindo 150 cm de comprimento, 80 cm de largura e 45 cm de altura do chão à plataforma, o cabo possui 100 cm de altura. Pintura epóxi. Medidas aproximadas 150 x 80 x 45 cm (CxLxA),Peso: 60 Kg, Aço carbono",null,null,null,null,null,null,null,null,null,null,null,null,null,null,null,null,null,null,2299.9,null,null,null,null,null,null,null,2398,null,1961.52,null,null,null,null,null,null,null,null,null,null,null,null,null,null,null,null,null,null,null,null,null,null,null,null,null,null,null,null,null,null,null,null,null,null,null,null,null,null,null,null,null,null,null,null,null,null,{"$f":"AVERAGE(F89:BH89)","v":2219.8066666666668},2219.81,4439.62]
["990605407 - 1",88,370,"un","Catraca para esticar arame liso ovalado de bitola mínima 2,2 x 2,7 mm - dimensão mínima da catraca: 42 x 55 x 58 mm",null,null,null,null,null,null,null,null,null,null,14,null,null,null,null,null,null,null,null,8.19,null,10.130000000000001,9.9,null,null,null,null,null,null,null,null,null,null,null,null,null,null,null,null,null,null,null,null,null,null,null,null,null,null,null,null,null,null,null,null,null,null,null,null,null,null,null,null,null,null,null,null,null,null,null,null,null,null,null,null,{"$f":"AVERAGE(F90:BH90)","v":10.555},10.56,3907.2000000000003]
[null,89,43,"un","cavadeira reta forjada nº10 com cabo de aproximadamente 1,50m",null,null,null,null,null,null,null,null,null,null,60,null,null,null,null,null,null,null,null,64.989999999999995,48.99,null,null,null,null,null,null,null,null,null,null,null,null,null,null,null,null,null,51.89,null,null,null,null,null,null,null,null,null,null,null,null,null,null,null,null,null,null,null,null,null,null,null,null,null,null,null,null,null,null,null,null,null,null,null,null,{"$f":"AVERAGE(F91:BH91)","v":56.467500000000001},56.47,2428.21]
["990605408 - 1",90,39,"un","Chave canhão longa 10 mm",null,null,null,null,null,null,null,null,null,13.84,30,null,null,null,null,null,null,null,null,null,26.88,null,null,null,null,null,null,null,null,null,null,null,null,null,null,null,null,null,null,null,null,null,null,null,null,null,null,null,null,null,null,null,null,null,null,null,null,null,null,null,null,null,null,null,null,null,null,null,null,null,null,null,null,null,null,{"$f":"AVERAGE(P92:CB92,F92:N92)","v":28.439999999999998},28.44,1109.1600000000001]
["990605408 - 2",91,39,"un","Chave canhão longa 11 mm",null,null,null,null,null,null,null,null,null,13.81,30,null,null,null,null,null,null,null,null,null,29.24,24.78,null,null,null,null,null,null,null,null,null,null,null,null,null,null,null,null,null,null,null,null,null,null,null,null,null,null,null,null,null,null,null,null,null,null,null,null,null,null,null,null,null,null,null,null,null,null,null,null,null,null,null,null,null,{"$f":"AVERAGE(P93:CB93,F93:N93)","v":28.006666666666664},28.01,1092.3900000000001]
["990605408 - 3",92,39,"un","Chave canhão longa 12 mm",null,null,null,null,null,null,null,null,null,14.85,33,null,null,null,null,null,null,null,null,null,16.11,null,null,null,null,null,null,null,null,null,null,null,null,null,null,null,null,null,null,null,null,null,null,null,null,null,null,null,null,null,null,null,null,null,null,null,null,null,null,null,null,null,null,null,null,null,null,null,null,null,null,null,null,null,null,{"$f":"AVERAGE(Q94:CB94,F94:O94)","v":15.48},15.48,603.72]
["990605408 - 4",93,39,"un","Chave canhão longa 13 mm",null,null,null,null,null,null,null,null,null,14.75,60,null,null,null,null,null,null,null,null,null,16.11,null,null,null,null,null,null,null,null,null,null,null,null,null,null,null,null,null,null,null,null,null,null,null,null,null,null,null,null,null,null,null,null,null,null,null,null,null,null,null,null,null,null,null,null,null,null,null,null,null,null,null,null,null,null,{"$f":"AVERAGE(Q95:CB95,F95:O95)","v":15.43},15.43,601.77]
["990605408 - 5",94,39,"un","Chave canhão longa 6 mm",null,null,null,null,null,null,null,null,null,12.92,30,null,null,null,null,null,null,null,null,15.34,null,null,null,null,null,null,null,null,null,null,null,null,null,null,null,17.739999999999998,null,null,55.5,null,null,null,null,null,null,null,null,null,null,null,null,null,null,null,null,null,null,null,null,null,null,null,null,null,null,null,null,null,null,null,null,null,null,null,null,{"$f":"AVERAGE(AS96:CB96,Q96:AQ96,F96:O96)","v":15.333333333333334},15.33,597.87]
["990605408 - 6",95,39,"un","Chave canhão longa 7 mm",null,null,null,null,null,null,null,null,null,13.5,29,null,null,null,null,null,null,null,null,null,null,null,null,null,null,null,null,null,null,null,null,null,null,null,null,null,null,null,null,15.39,null,null,null,null,null,null,null,null,null,null,null,null,null,null,null,null,null,null,null,null,null,null,null,null,null,null,null,null,null,null,null,null,null,null,null,{"$f":"AVERAGE(Q97:CB97,F97:O97)","v":14.445},14.45,563.54999999999995]
["990605408 - 7",96,39,"un","Chave canhão longa 8 mm",null,null,null,null,null,null,null,null,null,13.58,30,null,null,null,null,null,null,null,null,null,16.11,null,null,null,null,null,null,null,null,null,null,null,null,null,null,null,null,null,null,15.39,null,null,null,null,null,null,null,null,null,null,null,null,null,null,null,null,null,null,null,null,null,null,null,null,null,null,null,null,null,null,null,null,null,null,null,{"$f":"AVERAGE(Q98:CB98,F98:O98)","v":15.026666666666666},15.03,586.16999999999996]
["990605408 - 8",97,29,"un","Chave canhão longa 9 mm",null,null,null,null,null,null,null,null,null,13.59,32,null,null,null,null,null,null,null,26.91,null,null,null,null,null,null,null,null,null,null,null,null,28.9,null,null,null,null,null,null,null,null,null,null,null,null,null,null,null,null,null,null,null,null,null,null,null,null,null,null,null,null,null,null,null,null,null,null,null,null,null,null,null,null,null,null,null,{"$f":"AVERAGE(P99:CB99,F99:N99)","v":29.27},29.27,848.83]
["990607990 - 1",98,27,"un","Chave de Mangueira Dupla em Latão Utilização: em conexões de engate rápido tipo STORZ de 1.1/2” e 2.1/2",null,null,null,null,null,null,null,null,null,null,null,null,null,null,null,null,null,null,null,null,null,null,null,null,null,null,null,null,null,null,null,null,null,null,null,null,null,null,null,null,null,null,null,null,null,null,null,null,null,null,null,null,null,null,null,null,null,null,null,null,14.21,13.67,null,null,null,null,null,null,null,null,null,null,null,null,11.37,{"$f":"AVERAGE(F100:CB100)","v":13.083333333333334},13.08,353.16]
["990604474 - 3",99,73,"un","CHAVE FENDA FOSFATIZADA EMBORRACHADA 3/16X6 CRV",null,null,null,null,null,null,null,null,null,null,12,null,null,null,null,null,null,null,null,null,null,null,null,null,null,null,null,null,null,null,null,9.59,null,null,null,null,null,null,null,null,null,null,null,null,null,null,null,null,null,null,null,null,null,9.16,null,null,null,null,null,null,null,null,null,null,null,null,null,null,null,null,null,null,null,null,null,{"$f":"AVERAGE(F101:CB101)","v":10.25},10.25,748.25]
[null,100,24,"un","Chave Parafusadeira de Impacto Pneumática 1Pol. Eixo Estendido 2.400N.m com Gatilho Interno + Adaptador 1 x 3/4 Pol",null,null,null,null,null,null,null,null,null,null,null,null,null,null,null,null,null,null,1229.9000000000001,null,null,null,null,null,null,null,null,null,null,null,null,null,null,null,null,null,null,null,1298,null,null,null,null,null,null,1975.05,null,null,null,null,null,null,null,null,null,null,null,null,null,null,null,null,null,null,null,null,null,null,null,null,null,null,null,null,null,{"$f":"AVERAGE(AY102,AR102,X102)","v":1500.9833333333336},1500.98,36023.520000000004]
[null,101,24,"un","Chave Parafusadeira de Impacto Pneumática com Eixo de 3/4 Pol. Curta 1.200 N.m",null,null,null,null,null,null,null,null,null,null,null,null,null,null,null,null,null,null,599,null,null,null,null,null,null,null,null,null,null,null,null,null,null,null,null,null,null,null,null,null,null,null,null,null,null,null,null,null,null,null,null,null,null,null,720.41,null,null,1093.26,null,null,null,null,null,null,null,null,null,null,null,null,null,null,null,null,null,{"$f":"AVERAGE(BH103,X103)","v":659.70499999999993},659.71,15833.04]
["990605905 - 2",102,73,"un","CHAVE PHILLIPS FOSFATIZADA EMBORRACHADA 3/16X6 CRV",null,null,null,null,null,null,null,null,null,null,12,null,null,null,null,null,null,null,null,null,15,16.559999999999999,10.55,null,null,null,null,null,null,null,null,null,null,null,null,null,null,null,null,null,null,null,null,null,null,null,null,null,null,null,null,null,null,null,null,null,null,null,null,null,null,null,null,null,null,null,null,null,null,null,null,null,null,null,null,{"$f":"AVERAGE(F104:CB104)","v":13.5275},13.53,987.68999999999994]
["990607993 - 1",103,49,"un","CHAVE TESTE CARTELA ou CHAVE DISMA",null,null,null,null,null,null,null,null,null,null,8,null,null,null,null,null,null,null,null,null,8.1300000000000008,8.9,9.93,null,null,null,null,null,null,null,null,null,null,null,null,null,null,null,null,null,null,null,null,null,null,null,null,null,null,null,null,null,null,null,null,null,null,null,null,null,null,null,null,null,null,null,null,null,null,null,null,null,null,null,null,{"$f":"AVERAGE(F105:CB105)","v":8.74},8.74,428.26]
["990607994 - 1",104,97,"un","Chave teste PARA REDE 220V",null,null,null,null,null,null,null,null,null,null,25,null,null,null,null,null,null,null,9.31,null,15.18,null,null,null,null,null,null,null,null,null,null,null,null,null,null,null,null,null,null,null,null,null,null,null,null,null,null,null,null,null,null,null,null,null,null,null,null,null,null,null,null,null,null,null,null,null,null,null,null,null,null,null,null,null,null,{"$f":"AVERAGE(Q106:CB106)","v":12.245000000000001},12.25,1188.25]
[null,105,1200,"un","Chumbador mecânico Tipo PBA Zincado (Parabolt) – com parafuso, arruela, jaqueta e cone - 1/4\"x1.3/4\"",0.77,0.47,0.63,0.68,1.24,null,null,null,null,null,null,null,null,null,null,null,null,null,null,null,null,null,null,null,null,null,null,null,null,null,null,null,null,null,null,null,null,null,1.1052999999999999,null,null,null,null,null,null,null,null,null,null,null,null,null,null,null,null,null,null,null,null,null,null,null,null,null,null,null,null,null,null,null,null,null,null,null,null,{"$f":"AVERAGE(AS107:CB107,K107:AQ107,F107:I107)","v":0.63750000000000007},0.64,768]
[null,106,1200,"un","Chumbador mecânico Tipo PBA Zincado (Parabolt) – com parafuso, arruela, jaqueta e cone - 3/4\"x8\"",11.56,9.69,null,11.2,null,null,null,null,null,null,null,null,null,null,null,null,null,null,null,null,null,null,null,null,null,null,null,null,null,null,null,null,null,null,null,null,null,null,null,null,null,null,null,null,null,null,null,null,null,null,null,null,null,null,null,null,null,null,null,null,null,null,null,null,null,null,null,null,null,null,null,null,null,null,null,{"$f":"AVERAGE(F108:CB108)","v":10.816666666666668},10.82,12984]
[null,107,1200,"un","Chumbador mecânico Tipo PBA Zincado (Parabolt) – com parafuso, arruela, jaqueta e cone - 3/8\"x4\"",1.32,null,null,1.47,null,null,null,null,null,null,null,null,null,null,null,null,null,null,null,null,null,null,null,null,null,null,null,null,null,null,null,null,null,null,null,null,null,null,null,null,null,null,null,null,null,null,null,null,null,null,null,null,null,null,null,null,null,null,null,null,null,null,null,null,null,null,null,null,null,null,null,null,null,null,null,{"$f":"AVERAGE(F109:CB109)","v":1.395},1.4,1680]
[null,108,1200,"un","Chumbador mecânico Tipo PBA Zincado (Parabolt) – com parafuso, arruela, jaqueta e cone - 5/16\"x3\"",0.92,0.69810000000000005,0.7,0.96,1.38,null,null,null,null,null,null,null,null,null,null,null,null,null,null,null,null,null,null,null,null,null,null,null,null,null,null,null,null,null,null,null,null,null,null,null,null,null,null,null,null,null,null,null,null,null,null,null,null,null,null,null,null,null,null,null,null,null,null,null,null,null,null,null,null,null,null,null,null,null,null,{"$f":"AVERAGE(F110:I110)","v":0.81952500000000006},0.82,983.99999999999989]
[null,109,1200,"un","Chumbador mecânico Tipo PBA Zincado (Parabolt) – com parafuso, arruela, jaqueta e cone - 1/4\"x2\"",0.84,0.43919999999999998,0.47,0.64,null,1.99,null,null,null,null,null,null,null,null,null,null,null,null,null,null,1.28,null,null,null,null,null,null,null,null,null,null,null,null,null,null,null,null,null,null,null,null,null,null,null,null,null,null,null,null,null,null,null,null,null,null,null,null,null,null,null,null,null,null,null,null,null,null,null,null,null,null,null,null,null,null,{"$f":"AVERAGE(G111:I111)","v":0.51639999999999997},0.52,624]
[null,110,1200,"un","Chumbador mecânico Tipo PBA Zincado (Parabolt) – com parafuso, arruela, jaqueta e cone - 5/16\"x2.1/4\"",0.76,0.57650000000000001,null,0.79,null,2.25,null,null,null,null,null,null,null,null,null,null,null,null,null,null,null,null,null,null,null,null,null,null,null,null,null,null,null,null,null,null,null,null,null,null,null,null,null,null,null,null,null,null,null,null,null,null,null,null,null,null,null,null,null,null,null,null,null,null,null,null,null,null,null,null,null,null,null,null,null,{"$f":"AVERAGE(F112:I112)","v":0.70883333333333332},0.71,852]
[null,111,1200,"un","Chumbador mecânico Tipo PBA Zincado (Parabolt) – com parafuso, arruela, jaqueta e cone - 3/8\"x5\"",1.57,1.18,null,1.71,null,null,null,null,null,null,null,null,null,null,null,null,null,null,null,null,null,null,null,null,null,2.6,null,null,null,null,null,null,null,null,null,null,null,null,null,null,null,null,null,null,null,null,null,null,null,null,null,null,null,null,null,null,null,null,null,null,null,null,null,null,null,null,null,null,null,null,null,null,null,null,null,{"$f":"AVERAGE(F113:I113)","v":1.4866666666666666},1.49,1788]
[null,112,1200,"un","Chumbador mecânico Tipo PBA Zincado (Parabolt) – com parafuso, arruela, jaqueta e cone - 1/2\"x4\"",2.16,1.92,2.48,2.39,3.92,null,null,null,null,null,null,null,2.69,null,null,null,null,null,null,null,null,null,null,null,null,null,null,null,null,null,null,null,null,null,null,null,null,null,3.7772000000000001,null,null,null,null,null,null,null,null,null,null,null,null,null,null,null,null,null,null,null,null,null,null,null,null,null,null,null,null,null,null,null,null,null,null,null,null,{"$f":"AVERAGE(AR114,R114,F114:I114)","v":2.5695333333333337},2.57,3084]
[null,113,1200,"un","Chumbador mecânico Tipo PBA Zincado (Parabolt) – com parafuso, arruela, jaqueta e cone - 1/2\"x7\"",3.72,3.5832999999999999,null,4.1399999999999997,null,null,null,null,null,null,null,null,null,null,null,null,null,null,null,null,null,null,null,null,null,null,null,null,null,null,null,null,null,null,null,null,null,null,null,null,null,null,null,null,null,null,null,null,null,null,null,null,null,null,null,null,null,null,null,null,null,null,null,null,null,null,null,null,null,null,null,null,null,null,null,{"$f":"AVERAGE(F115:I115)","v":3.8144333333333336},3.81,4572]
[null,114,1200,"un","Chumbador mecânico Tipo PBA Zincado (Parabolt) – com parafuso, arruela, jaqueta e cone - 3/4\"x7\"",9.1977399999999996,8.3346999999999998,6.6,9.6300000000000008,null,null,null,null,null,null,null,null,null,null,null,null,null,null,null,null,null,null,null,null,null,null,null,null,null,null,null,null,null,null,null,null,null,null,null,null,null,null,null,null,null,null,null,null,null,null,null,null,null,null,null,null,null,null,null,null,null,null,null,null,null,null,null,null,null,null,null,null,null,null,null,{"$f":"AVERAGE(F116:I116)","v":8.4406100000000013},8.44,10128]
[null,115,1200,"un","Chumbador mecânico Tipo PBA Inox (Parabolt) – com parafuso, arruela, jaqueta e cone - 1/4\"x1.3/4\"",2.67,0.47,null,2.98,null,null,null,null,null,null,null,null,null,null,null,null,null,null,null,null,null,null,null,null,null,null,null,null,null,null,null,null,null,null,null,null,null,null,null,null,null,null,null,null,null,null,null,null,null,null,null,null,null,null,null,null,null,null,null,null,null,null,null,null,null,null,null,null,null,null,null,null,null,null,null,{"$f":"AVERAGE(I117,F117)","v":2.8250000000000002},2.83,3396]
[null,116,1200,"un","Chumbador mecânico Tipo PBA Inox (Parabolt) – com parafuso, arruela, jaqueta e cone - 1/4\"x2\"",2.6,0.43919999999999998,1.83,3.11,null,null,null,null,null,null,null,null,null,null,null,null,null,null,null,null,null,null,null,null,null,null,null,null,null,null,null,null,null,null,null,null,null,null,null,null,null,null,null,null,null,null,null,null,null,null,null,null,null,null,null,null,null,null,null,null,null,null,null,null,null,null,null,null,null,null,null,null,null,null,null,{"$f":"AVERAGE(H118:I118,F118)","v":2.5133333333333332},2.5099999999999998,3011.9999999999995]
[null,117,1200,"un","Chumbador mecânico Tipo PBA Inox (Parabolt) – com parafuso, arruela, jaqueta e cone - 5/16\"x2.1/4\"",3.9,0.57650000000000001,null,3.68,null,null,null,null,null,null,null,null,null,null,null,null,null,null,null,null,null,null,null,null,null,null,null,null,null,null,null,null,null,null,null,null,null,null,null,null,null,null,null,null,null,null,null,null,null,null,null,null,null,null,null,null,null,null,null,null,null,null,null,null,null,null,null,null,null,null,null,null,null,null,null,{"$f":"AVERAGE(H119:I119,F119)","v":3.79},3.79,4548]
[null,118,1200,"un","Chumbador mecânico Tipo PBA Inox (Parabolt) – com parafuso, arruela, jaqueta e cone - 5/16\"x3\"",3.56,0.69810000000000005,null,4.42,null,null,null,null,null,null,null,null,null,null,null,null,null,null,null,null,null,null,null,null,null,null,null,null,null,null,null,null,null,null,null,null,null,null,null,null,null,null,null,null,null,null,null,null,null,null,null,null,null,null,null,null,null,null,null,null,null,null,null,null,null,null,null,null,null,null,null,null,null,null,null,3.99,3.99,4788]
[null,119,1200,"un","Chumbador mecânico Tipo PBA Inox (Parabolt) – com parafuso, arruela, jaqueta e cone - 3/8\"x5\"",7.24,1.1877,null,8.1999999999999993,null,null,null,null,null,null,null,null,null,null,null,null,null,null,null,null,null,null,null,null,null,null,null,null,null,null,null,null,null,null,null,null,null,null,null,null,null,null,null,null,null,null,null,null,null,null,null,null,null,null,null,null,null,null,null,null,null,null,null,null,null,null,null,null,null,null,null,null,null,null,null,7.72,7.72,9264]
[null,120,1200,"un","Chumbador mecânico Tipo PBA Inox (Parabolt) – com parafuso, arruela, jaqueta e cone - 3/8\"x4\"",5.86,null,null,6.7,null,null,null,null,null,null,null,null,null,null,null,null,null,null,null,null,null,null,null,null,null,null,null,null,null,null,null,null,null,null,null,null,null,null,null,null,null,null,null,null,null,null,null,null,null,null,null,null,null,null,null,null,null,null,null,null,null,null,null,null,null,null,null,null,null,null,null,null,null,null,null,{"$f":"AVERAGE(F122:I122)","v":6.28},6.28,7536]
[null,121,1200,"un","Chumbador mecânico Tipo PBA Inox (Parabolt) – com parafuso, arruela, jaqueta e cone - 1/2\"x4\"",10.6,6.07,7.31,11.86,null,null,null,null,null,null,null,null,null,null,null,null,null,null,null,null,null,null,null,null,null,null,null,null,null,null,null,null,null,null,null,null,null,null,null,null,null,null,null,null,null,null,null,null,null,null,null,null,null,null,null,null,null,null,null,null,null,null,null,null,null,null,null,null,null,null,null,null,null,null,null,{"$f":"AVERAGE(F123:CB123)","v":8.9600000000000009},8.9600000000000009,10752.000000000002]
[null,122,1200,"un","Chumbador mecânico Tipo PBA Inox (Parabolt) – com parafuso, arruela, jaqueta e cone - 1/2\"x7\"",17.16,3.58,null,19.29,null,null,null,null,null,null,null,null,null,null,null,null,null,null,null,null,null,null,null,null,null,null,null,null,null,null,null,null,null,null,null,null,null,null,null,null,null,null,null,null,null,null,null,null,null,null,null,null,null,null,null,null,null,null,null,null,null,null,null,null,null,null,null,null,null,null,null,null,null,null,null,{"$f":"AVERAGE(I124,F124)","v":18.225000000000001},18.23,21876]
[null,123,1200,"un","Chumbador mecânico Tipo PBA Inox (Parabolt) – com parafuso, arruela, jaqueta e cone - 3/4\"x7\"",48.52,8.33,null,54.16,null,null,null,null,null,null,null,null,null,null,null,null,null,null,null,null,null,null,null,null,null,null,null,null,null,null,null,null,null,null,null,null,null,null,null,null,null,null,null,null,null,null,null,null,null,null,null,null,null,null,null,null,null,null,null,null,null,null,null,null,null,null,null,null,null,null,null,null,null,null,null,{"$f":"AVERAGE(I125,F125)","v":51.34},51.34,61608.000000000007]
[null,124,1200,"un","Chumbador mecânico Tipo PBA Inox (Parabolt) – com parafuso, arruela, jaqueta e cone - 3/4\"x8\"",55.32,20.685600000000001,null,61.74,null,null,null,null,null,null,null,null,null,null,null,null,null,null,null,null,null,null,null,null,null,null,null,null,null,null,null,null,null,null,null,null,null,null,null,null,null,null,null,null,null,null,null,null,null,null,null,null,null,null,null,null,null,null,null,null,null,null,null,null,null,null,null,null,null,null,null,null,null,null,null,{"$f":"AVERAGE(I126,F126)","v":58.53},58.53,70236]
[null,125,1200,"un","Chumbador mecânico Tipo CBA Zincado (Parabolt) – com parafuso, arruela, jaqueta e cone - 1/4\"x2\"",0.88,0.84519999999999995,0.91,1.1200000000000001,null,null,1.83,null,null,null,null,null,null,null,null,null,null,null,null,null,2.4900000000000002,null,null,null,null,null,null,null,null,null,null,null,null,null,null,null,null,null,null,null,null,null,null,null,null,null,null,null,null,null,null,null,null,null,null,null,null,null,null,null,null,null,null,null,null,null,null,null,null,null,null,null,null,null,null,{"$f":"AVERAGE(F127:I127)","v":0.93880000000000008},0.94,1128]
[null,126,1200,"un","Chumbador mecânico Tipo CBA Zincado (Parabolt) – com parafuso, arruela, jaqueta e cone - 5/16\"x2.1/4\"",1.28,1.4686999999999999,null,1.7,null,null,null,null,null,null,null,null,null,null,null,null,null,null,null,null,null,null,null,null,null,null,null,null,null,null,null,null,null,null,null,null,null,null,null,null,null,null,null,null,null,null,null,null,null,null,null,null,null,null,null,null,null,null,null,null,null,null,null,null,null,null,null,null,null,null,null,null,null,null,null,{"$f":"AVERAGE(F128:I128)","v":1.4828999999999999},1.48,1776]
[null,127,1200,"un","Chumbador mecânico Tipo CBA Zincado (Parabolt) – com parafuso, arruela, jaqueta e cone - 5/16\"x3\"",2.21,2.1385000000000001,null,2.5,null,null,null,null,null,null,null,null,null,null,null,null,null,null,null,null,3.77,null,null,null,null,null,null,null,null,null,null,null,null,null,null,null,null,null,null,null,null,null,null,null,null,null,null,null,null,null,null,null,null,null,null,null,null,null,null,null,null,null,null,null,null,null,null,null,null,null,null,null,null,null,null,{"$f":"AVERAGE(Z129,F129:I129)","v":2.6546250000000002},2.65,3180]
[null,128,1200,"un","Chumbador mecânico Tipo CBA Zincado (Parabolt) – com parafuso, arruela, jaqueta e cone - 3/8\"x4\"",3.64,2.5299999999999998,null,null,null,null,null,null,null,null,null,null,null,null,null,null,null,null,null,null,null,null,null,null,null,null,null,null,null,null,null,null,null,null,null,null,null,null,null,null,null,null,null,null,null,null,null,null,null,null,null,null,null,null,null,null,null,null,null,null,null,null,null,null,null,null,null,null,null,null,null,null,null,null,null,{"$f":"AVERAGE(Z130,F130:I130)","v":3.085},3.09,3708]
[null,129,1200,"un","Chumbador mecânico Tipo CBA Zincado (Parabolt) – com parafuso, arruela, jaqueta e cone - 1/2\"x4\"",6.82,7.2144000000000004,null,8.3800000000000008,null,null,null,null,null,null,null,null,null,null,null,null,null,null,null,null,null,null,null,null,null,null,null,null,null,null,null,null,null,null,null,null,null,null,null,null,null,null,null,null,null,null,null,null,null,null,null,null,null,null,null,null,null,null,null,null,null,null,null,null,null,null,null,null,null,null,null,null,null,null,null,{"$f":"AVERAGE(F131:I131)","v":7.4714666666666671},7.47,8964]
[null,130,1200,"un","Chumbador mecânico Tipo CBA Inox (Parabolt) – com parafuso, arruela, jaqueta e cone - 1/4\"x2\"",6.74,6.07,null,5.54,null,null,null,null,null,null,null,null,null,null,null,null,null,null,null,null,null,null,null,null,null,null,null,null,null,null,null,null,null,null,null,null,null,null,null,null,null,null,null,null,null,null,null,null,null,null,null,null,null,null,null,null,null,null,null,null,null,null,null,null,null,null,null,null,null,null,null,null,null,null,null,{"$f":"AVERAGE(F132:I132)","v":6.1166666666666671},{"$f":"ROUND(CC132,2)","v":6.12},{"$f":"CD132*C132","v":7344}]
[null,131,1200,"un","Chumbador mecânico Tipo CBA Inox (Parabolt) – com parafuso, arruela, jaqueta e cone - 5/16\"x2.1/4\"",7.6,9.0959000000000003,null,8.5,null,null,null,null,null,null,null,null,null,null,null,null,null,null,null,null,null,null,null,null,null,null,null,null,null,null,null,null,null,null,null,null,null,null,null,null,null,null,null,null,null,null,null,null,null,null,null,null,null,null,null,null,null,null,null,null,null,null,null,null,null,null,null,null,null,null,null,null,null,null,null,8.3986333333333345,8.4,10080]
[null,132,1200,"un","Chumbador mecânico Tipo CBA Inox (Parabolt) – com parafuso, arruela, jaqueta e cone - 5/16\"x3\"",11.02,23.54,null,12.3,null,null,null,null,null,null,null,null,null,null,null,null,null,null,null,null,null,null,null,null,null,null,null,null,null,null,null,null,null,null,null,null,null,null,null,null,null,null,null,null,null,null,null,null,null,null,null,null,null,null,null,null,null,null,null,null,null,null,null,null,null,null,null,null,null,null,null,null,null,null,null,{"$f":"AVERAGE(I134,F134)","v":11.66},11.66,13992]
[null,133,1200,"un","Chumbador mecânico Tipo CBA Inox (Parabolt) – com parafuso, arruela, jaqueta e cone - 1/2\"x4\"",27.3,34.856900000000003,null,null,null,null,null,null,null,null,null,null,null,null,null,null,null,null,null,null,null,null,null,null,null,null,null,null,null,null,null,null,null,null,null,null,null,null,null,null,null,null,null,null,null,null,null,null,null,null,null,null,null,null,null,null,null,null,null,null,null,null,null,null,null,null,null,null,null,null,null,null,null,null,null,{"$f":"AVERAGE(F135:G135)","v":31.078450000000004},31.08,37296]
[null,134,10,"un","Cintel P/ Maçarico De Corte Oxiacetileno Glp Com Carro Guia",null,null,null,null,null,null,null,null,null,null,null,null,null,null,null,null,null,null,139.9,null,115,null,null,null,null,null,null,null,null,null,null,null,139.97,null,null,null,null,null,null,null,null,null,null,null,null,null,null,null,null,null,null,null,null,null,null,null,null,null,null,null,null,null,null,null,null,null,null,null,null,null,null,null,null,null,null,{"$f":"AVERAGE(F136:AL136)","v":131.62333333333333},131.62,1316.2]
["10119016 - 1",135,64,"un","Colher de pedreiro 9\" - em aço - cabo de madeira",null,null,null,null,null,null,null,null,null,8.9,42,null,null,null,null,null,null,null,null,null,19.079999999999998,null,22.48,null,null,null,null,null,null,null,null,null,null,null,null,null,null,null,null,null,null,null,null,null,null,23.66,null,null,null,null,null,null,null,null,null,null,null,null,null,null,null,null,null,null,null,null,null,null,null,null,null,null,null,null,null,{"$f":"AVERAGE(R137:BH137)","v":21.74},21.74,1391.36]
["990610738 - 1",136,4,"un","Compactador de placa vibratória para utilização em reparos de tapa buraco asfáltico:\nCombustível: gasolina \nPotência do motor: 6,5hp ou maior \nCiclo: 4 tempos \nFiltro de ar banhado à óleo embreagem centrífuga \nCom rodas e alças de elevação para facilitar o transporte \nProfundidade de compactações de 20 cm ou mais \nSistema de partida manual \nVibrações por minuto 4500 ou mais \nPeso de (60 à 70) kg \nSem reservatório de água \nOs manuais deverão ser fornecidos em português",null,null,null,null,null,null,null,null,null,null,null,null,null,null,null,null,null,null,10900,null,null,null,null,null,null,null,null,null,null,null,null,null,null,null,null,null,null,null,null,null,null,null,null,null,null,9878.1,null,null,null,null,null,null,null,null,null,null,null,null,null,null,null,null,null,null,null,null,null,null,null,null,null,null,null,null,null,{"$f":"AVERAGE(F138:BO138)","v":10389.049999999999},10389.049999999999,41556.199999999997]
["990606769 - 2",137,6,"un","COMPRESSOR DE AR Tensão: 220V – Monofásico Potência do motor: 2HP – 1,35kW Número do polos: 2 - Volume de reservatório: 100L",null,null,null,null,null,null,null,null,null,2526.79,null,null,null,null,null,null,null,null,null,null,3320.51,null,2679.29,null,null,null,null,null,null,null,null,null,null,null,null,null,null,null,null,null,null,null,null,null,null,null,null,null,null,null,null,null,null,null,null,null,null,null,null,null,null,null,null,null,null,null,null,null,null,null,null,null,null,null,null,{"$f":"AVERAGE(F139:BH139)","v":2842.1966666666667},2842.2,17053.199999999997]
["990605959 - 3",138,24,"rl","Corda polipropileno trançada 8 mm branca rolo com 200 m",null,null,null,null,null,null,null,null,null,null,null,null,null,null,null,null,null,null,null,null,324.06,214.74,305.81,null,null,null,null,null,null,null,null,null,null,null,null,null,null,null,null,null,null,null,null,null,null,null,null,null,null,null,null,null,null,null,null,null,null,null,null,null,null,null,null,null,null,null,null,null,null,null,null,null,null,null,null,{"$f":"AVERAGE(Z140:AB140)","v":281.53666666666663},281.54000000000002,6756.9600000000009]
["990607998 - 1",139,134,"un","Corrente de aço para cadeado, medidas aproximadas: 5 mm x 40 cm",null,null,null,null,null,null,null,null,null,null,null,null,null,null,null,null,null,null,null,null,12.99,null,16.18,null,null,null,null,null,null,null,null,null,null,null,null,null,null,null,null,null,null,null,null,null,null,null,null,null,null,null,null,null,null,null,null,null,null,null,null,null,null,null,null,null,null,null,null,null,null,null,null,null,null,null,null,{"$f":"AVERAGE(F141:BH141)","v":14.585000000000001},14.59,1955.06]
[null,140,400,"m","Corrente polida 3/4\" - 19mm - Elo curto e soldada.",null,null,null,null,null,null,null,null,null,null,null,null,null,null,null,null,null,null,null,149.33000000000001,214.98,null,null,null,null,null,null,null,null,null,null,null,null,null,null,null,null,null,178.03,null,null,null,null,null,null,null,null,null,null,null,null,null,null,null,null,null,null,null,null,null,null,null,null,null,null,null,null,null,null,null,null,null,null,null,null,{"$f":"AVERAGE(F142:BH142)","v":180.78},180.78,72312]
["990607999 - 1",141,60,"un","Desempenadeira de plástico com espuma",null,null,null,null,null,null,null,null,null,null,22,null,null,null,null,null,null,null,15.9,null,null,null,null,null,null,null,null,null,null,null,null,null,null,null,null,null,null,null,null,null,null,null,null,null,null,23.66,null,null,null,null,null,null,null,null,null,null,null,null,null,null,null,null,null,null,null,null,null,null,null,null,null,null,null,null,null,{"$f":"AVERAGE(F143:BK143)","v":20.52},20.52,1231.2]
["990608000 - 1",142,56,"un","Desempenadeira em aço dentada, medidas aproximadas 25 x 12 cm",null,null,null,null,null,null,null,null,null,null,null,null,null,null,null,null,null,null,null,15.99,18.899999999999999,null,17.760000000000002,null,null,null,null,null,null,null,null,null,null,null,null,null,null,null,null,null,null,null,null,null,null,null,null,null,null,null,null,null,null,null,null,null,null,null,null,null,null,null,null,null,null,null,null,null,null,null,null,null,null,null,null,{"$f":"AVERAGE(F144:BH144)","v":17.55},17.55,982.80000000000007]
["990608001 - 1",143,56,"un","Desempenadeira plástica 18 x 30 cm - com borracha",null,null,null,null,null,null,null,null,null,null,null,null,null,null,null,null,null,null,null,null,null,null,null,null,null,null,null,null,null,null,null,null,null,null,null,20.8,null,null,null,null,null,null,null,null,null,26.51,24.4,null,null,null,null,null,null,null,null,null,null,null,null,null,null,null,null,null,null,null,null,null,null,null,null,null,null,null,null,{"$f":"AVERAGE(F145:BI145)","v":23.903333333333336},23.9,1338.3999999999999]
["10119021 - 1",144,57,"un","Desempenadeira plástica estriada – 14 x 27 cm",null,null,null,null,null,null,null,null,null,4.46,null,null,null,null,null,null,null,null,7.1,null,null,null,null,null,null,3.5,null,null,null,null,null,null,null,null,null,null,null,null,null,null,null,null,null,null,null,null,null,null,null,null,null,null,null,null,null,null,null,null,null,null,null,null,null,null,null,null,null,null,null,null,null,null,null,null,null,{"$f":"AVERAGE(Y146:BJ146,F146:W146)","v":3.98},3.98,226.85999999999999]
["10119022 - 7",145,1840,"un","DISCO CORTE 4.1/2 115 X 1 MM",null,null,null,null,null,null,null,null,null,null,2.25,null,null,null,null,null,null,null,null,1.59,null,3.5,null,null,null,null,null,null,null,null,null,null,null,null,null,null,null,null,null,null,null,null,null,null,null,null,null,null,null,null,null,null,null,null,null,null,null,null,null,null,null,null,null,null,null,null,null,null,null,null,null,null,null,null,null,{"$f":"AVERAGE(AB147:BR147,F147:Z147)","v":1.92},1.92,3532.7999999999997]
["10101651 - 1",146,933,"un","Disco de corte 12\"",null,null,null,null,null,null,null,null,null,null,28,null,null,null,null,null,null,null,13.09,12.49,null,null,null,null,null,null,null,null,null,null,null,null,null,null,null,null,null,null,null,null,null,null,null,null,null,null,null,null,null,null,null,null,null,null,null,null,null,null,null,null,null,null,null,null,null,null,null,null,null,null,null,null,null,null,null,{"$f":"AVERAGE(Q148:BZ148,F148:O148)","v":12.79},12.79,11933.07]
["99060204 - 4",147,2333,"un","Disco de corte 7”",null,null,null,null,null,null,null,null,null,3.74,10,null,null,null,null,null,null,null,5.99,null,null,null,null,null,null,null,null,null,null,null,null,null,null,null,null,null,null,null,null,null,null,null,null,null,null,null,null,null,null,null,null,null,null,null,null,null,null,null,null,null,null,null,null,null,null,null,null,null,null,null,null,null,null,null,null,{"$f":"AVERAGE(Q149:BH149,F149:O149)","v":4.8650000000000002},4.87,11361.710000000001]
["990607028 - 2",148,725,"un","Disco de corte aço 115mm x 1,0mm x 22,23mm",null,null,null,null,null,null,null,null,null,1.33,null,null,null,null,null,null,null,null,3.59,null,null,null,null,null,null,null,null,null,null,null,null,null,null,null,null,null,null,null,null,null,null,3.14,null,null,null,null,null,null,null,null,null,null,null,null,null,null,null,null,null,null,null,null,null,null,null,null,null,null,null,null,null,null,null,null,null,{"$f":"AVERAGE(P150:BH150,F150:N150)","v":3.3650000000000002},3.37,2443.25]
["990610733 - 2",149,570,"un","Disco de corte Diamantado segmentado 350mm furo de 25,4 para asfalto e concreto",null,null,null,null,null,null,null,null,null,null,null,null,null,null,null,null,null,null,169.9,246.99,null,null,null,null,null,null,null,null,null,null,null,null,null,null,null,250.38,null,null,null,null,null,null,null,null,null,null,null,null,null,null,null,null,null,null,null,null,null,null,null,null,null,null,null,null,null,null,null,null,null,null,null,null,null,null,null,{"$f":"AVERAGE(F151:BH151)","v":222.42333333333332},222.42,126779.4]
["990607028 - 3",150,570,"un","Disco de corte Diamantado turbo 250mm furo de 25,4 para asfalto e concreto",null,null,null,null,null,null,null,null,null,null,null,null,null,null,null,null,null,null,134.9,null,null,null,null,null,null,null,null,null,null,null,null,null,null,null,null,null,null,null,126.46,null,null,null,null,null,null,null,null,null,null,null,null,null,null,null,null,null,null,null,null,null,null,null,null,null,null,null,null,null,null,null,null,null,null,null,null,{"$f":"AVERAGE(F152:BH152)","v":130.68},130.68,74487.600000000006]
["99060205 - 3",151,1165,"un","Disco de desbaste 7”",null,null,null,null,null,null,null,null,null,10.94,19,null,null,null,null,null,null,null,null,null,null,null,null,null,null,null,null,null,null,null,null,null,null,null,null,null,null,null,null,null,null,null,null,null,null,null,null,null,null,null,null,null,null,null,null,null,null,null,null,null,null,null,null,null,null,13.59,null,null,null,null,null,null,null,null,null,{"$f":"AVERAGE(F153:CB153)","v":14.51},14.51,16904.150000000001]
["10117136 - 1",152,206,"un","Disco de serra 4.3/8\" para madeira com 36 dentes",null,null,null,null,null,null,null,null,null,null,null,null,null,null,null,null,null,null,null,null,8.26,null,null,null,null,null,null,null,null,null,null,null,null,null,null,null,null,null,null,null,null,null,null,null,null,null,9.6,null,null,null,null,null,null,null,null,null,null,null,null,null,null,null,null,null,null,null,null,24.5,null,null,null,null,null,null,null,{"$f":"AVERAGE(BV154:CB154,F154:BT154)","v":8.93},8.93,1839.58]
["10117135 - 1",153,206,"un","Disco de serra 7.1/4\" para madeira com 36 dentes",null,null,null,null,null,null,null,null,null,18.600000000000001,null,null,null,null,null,null,null,null,23.9,null,null,23.99,null,null,null,null,null,null,null,null,null,null,null,null,null,null,null,null,null,null,null,null,null,null,null,null,null,null,null,null,null,null,null,null,null,null,null,null,null,null,null,null,null,null,null,null,null,null,null,null,null,null,null,null,null,{"$f":"AVERAGE(F155:CB155)","v":22.16333333333333},22.16,4564.96]
["990610733 - 5",154,420,"un","Disco diamantado de corte Segmentado, para asfalto e concreto, diâmetro externo de 350 mm e diâmetro do furo de 25,4 mm.",null,null,null,null,null,null,null,null,null,null,410,null,null,null,null,null,null,null,null,null,247,null,null,null,null,null,null,null,null,null,null,null,null,null,null,null,null,null,null,null,null,null,null,null,null,233.01,null,null,null,null,null,null,null,393.53,null,null,null,null,null,null,null,null,null,null,null,null,null,null,null,null,null,null,null,null,null,{"$f":"AVERAGE(Q156:CB156,F156:O156)","v":291.18},291.18,122295.6]
["990610733 - 3",155,570,"un","Disco diamantado segmentado 110 mm",null,null,null,null,null,null,null,null,null,12.69,33,null,null,null,null,null,null,null,17.09,null,15.19,null,null,null,null,null,null,null,null,null,null,null,null,null,null,null,null,null,null,null,null,null,null,null,null,null,null,null,null,null,null,null,null,null,null,null,null,null,null,null,null,null,null,null,null,null,null,null,null,null,null,null,null,null,null,{"$f":"AVERAGE(Q157:CB157,F157:O157)","v":14.99},14.99,8544.2999999999993]
["990610733 - 1",156,272,"un","Disco Diamantado segmentado de cortar tijolo refratário 4.3/8\" x 3/4\" - 110 x 20mm",null,null,null,null,null,null,null,null,null,null,null,null,null,null,null,null,null,null,null,null,21.99,null,null,null,null,31,null,null,null,null,null,null,null,null,null,null,null,null,null,null,null,null,null,null,null,null,null,null,null,null,null,22.5,null,null,null,null,null,null,null,null,null,null,null,null,null,null,null,null,null,null,null,null,null,null,null,{"$f":"AVERAGE(F158:CB158)","v":25.16333333333333},25.16,6843.52]
["990610733 - 4",157,270,"un","Disco Diamantado segmentado para serra mármore 4” – Ø 110 mm – furo 20 mm",null,null,null,null,null,null,null,null,null,null,null,null,null,null,null,null,null,null,16.09,null,18.899999999999999,null,null,null,null,null,null,null,null,null,null,null,null,null,null,null,null,null,null,null,null,18.39,null,null,null,null,null,null,null,null,null,null,null,null,null,null,null,null,null,null,null,null,null,null,null,null,null,null,null,null,null,null,null,null,null,{"$f":"AVERAGE(F159:CB159)","v":17.793333333333333},17.79,4803.3]
["990608002 - 1",158,270,"un","Disco diamantado turbo 110 mm",null,null,null,null,null,null,null,null,null,7.1,null,null,null,null,null,null,null,null,26.99,15.39,null,null,null,null,null,null,null,null,null,null,null,null,null,null,null,13.36,null,null,null,null,null,null,null,null,null,null,null,null,null,null,null,null,null,null,null,null,null,null,null,null,null,null,null,null,null,null,null,null,null,null,null,null,null,null,null,{"$f":"AVERAGE(Y160:CB160,P160:W160,F160:N160)","v":14.375},14.38,3882.6000000000004]
["10117187 - 1",159,265,"un","Disco Diamantado turbo de cortar tijolo refratário 4.3/8\" x 3/4\" - 110 x 20mm",null,null,null,null,null,null,null,null,null,null,null,null,null,null,null,null,null,null,14.9,null,20.27,null,null,null,null,null,null,null,null,null,null,null,null,null,null,null,null,null,null,null,null,null,null,null,null,null,null,null,null,null,21.99,null,null,null,null,null,null,null,null,null,null,null,null,null,null,null,null,null,null,null,null,null,null,null,null,{"$f":"AVERAGE(F161:CB161)","v":19.053333333333331},19.05,5048.25]
["10119024 - 1",160,265,"un","Disco Diamantado turbo para serra mármore 4” – Ø 110 mm – furo 20 mm",null,null,null,null,null,null,null,null,null,null,45,null,null,null,null,null,null,null,14.9,null,null,null,null,null,null,null,null,null,null,null,null,null,null,null,null,null,null,null,null,null,null,null,null,null,null,null,null,null,null,null,11.6,null,null,null,null,null,null,null,null,null,null,null,null,null,null,null,null,null,null,null,null,null,null,null,null,{"$f":"AVERAGE(Q162:CB162)","v":13.25},13.25,3511.25]
["990605410 - 1",161,835,"un","Disco FLAP grão 50 4”",null,null,null,null,null,null,null,null,null,null,18,null,null,null,null,null,null,null,10.49,null,12,null,null,null,null,null,null,null,null,null,null,null,null,null,null,null,null,null,null,null,null,null,null,null,null,null,null,null,null,null,null,null,null,null,null,null,null,null,null,null,null,null,null,null,null,null,null,null,null,null,null,null,null,null,null,{"$f":"AVERAGE(Q163:CB163)","v":11.245000000000001},11.25,9393.75]
["990605410 - 2",162,835,"un","Disco FLAP grão 50 7”",null,null,null,null,null,null,null,null,null,null,35,null,null,null,null,null,null,null,20.99,null,28.88,null,null,null,null,null,null,null,null,null,null,null,null,null,null,null,null,null,null,null,null,null,null,null,null,null,null,null,null,null,null,null,null,null,null,null,null,null,null,null,null,null,null,null,null,null,null,null,null,null,null,null,null,null,null,{"$f":"AVERAGE(F164:CB164)","v":28.289999999999996},28.29,23622.149999999998]
["990605410 - 3",163,585,"un","Disco FLAP grão 80 4”",null,null,null,null,null,null,null,null,null,null,18,null,null,null,null,null,null,null,null,null,6.99,null,7.9,null,null,null,null,null,null,null,null,null,null,null,null,null,null,null,null,null,null,null,null,null,null,null,null,null,null,null,null,null,null,null,null,null,null,null,null,null,null,null,null,null,null,null,null,null,null,null,null,null,null,null,null,{"$f":"AVERAGE(Q165:CB165)","v":7.4450000000000003},7.45,4358.25]
["990605410 - 4",164,585,"un","Disco FLAP grão 80 7”",null,null,null,null,null,null,null,null,null,null,35,null,null,null,null,null,null,null,null,null,9.68,11.99,null,null,null,null,null,null,null,null,null,null,null,null,null,null,null,null,null,null,null,12.37,null,null,null,null,null,null,null,null,null,null,null,null,null,null,null,null,null,null,null,null,null,null,null,null,null,null,null,null,null,null,null,null,null,{"$f":"AVERAGE(Q166:CB166)","v":11.346666666666666},11.35,6639.75]
["990605411 - 1",165,324,"un","Disco HOOKIT 5\" grão 100",null,null,null,null,null,null,null,null,null,null,null,null,null,null,null,null,null,null,3.399,null,8.48,null,null,null,null,null,null,null,null,null,null,2.89,null,null,null,null,null,null,null,null,null,null,null,null,null,null,null,null,null,null,null,null,null,null,null,null,null,null,null,null,null,null,null,null,null,null,null,null,null,null,null,null,null,null,null,{"$f":"AVERAGE(AA167:CB167,F167:Y167)","v":3.1444999999999999},3.14,1017.36]
["990605411 - 2",166,324,"un","Disco HOOKIT 5\" grão 120",null,null,null,null,null,null,null,null,null,null,null,null,null,null,null,null,null,null,3.69,null,null,null,null,null,null,null,null,null,null,null,null,2.89,3.12,null,null,null,null,null,null,null,null,null,null,null,null,null,null,null,null,null,null,null,null,null,null,null,null,null,null,null,null,null,null,null,null,null,null,null,null,null,null,null,null,null,null,{"$f":"AVERAGE(F168:CB168)","v":3.2333333333333329},3.23,1046.52]
["990605411 - 3",167,324,"un","Disco HOOKIT 5\" grão 150",null,null,null,null,null,null,null,null,null,null,null,null,null,null,null,null,null,null,3.79,null,null,null,2.4900000000000002,null,null,null,null,null,null,null,null,3.29,null,null,null,null,null,null,null,null,null,null,null,null,null,null,null,null,null,null,null,null,null,null,null,null,null,null,null,null,null,null,null,null,null,null,null,null,null,null,null,null,null,null,null,{"$f":"AVERAGE(F169:CB169)","v":3.19},3.19,1033.56]
["990605411 - 4",168,324,"un","Disco HOOKIT 5\" grão 320",null,null,null,null,null,null,null,null,null,null,null,null,null,null,null,null,null,null,null,null,null,null,null,null,null,null,null,null,null,null,null,3.19,3.97,null,null,null,null,null,null,3.09,null,null,null,null,null,null,null,null,null,null,null,null,null,null,null,null,null,null,null,null,null,null,null,null,null,null,null,null,null,null,null,null,null,null,null,{"$f":"AVERAGE(F170:CB170)","v":3.4166666666666665},3.42,1108.08]
["990605411 - 5",169,324,"un","Disco HOOKIT 5\" grão 400",null,null,null,null,null,null,null,null,null,null,null,null,null,null,null,null,null,null,null,null,null,null,null,null,null,null,null,null,null,null,null,2.39,3.97,5.5,null,null,null,null,null,null,null,null,null,null,null,null,null,null,null,null,null,null,null,null,null,null,null,null,null,null,null,null,null,null,null,null,null,null,null,null,null,null,null,null,null,{"$f":"AVERAGE(AN171:CB171,F171:AL171)","v":3.18},3.18,1030.3200000000002]
["990605411 - 6",170,324,"un","Disco HOOKIT 5\" grão 80",null,null,null,null,null,null,null,null,null,null,null,null,null,null,null,null,null,null,null,2.89,null,null,null,null,null,null,null,null,null,null,null,2.89,4.34,null,null,null,null,null,null,null,null,null,null,null,null,null,null,null,null,null,null,null,null,null,null,null,null,null,null,null,null,null,null,null,null,null,null,null,null,null,null,null,null,null,null,{"$f":"AVERAGE(AM172:CB172,F172:AK172)","v":2.89},2.89,936.36]
["990605412 - 1",171,96,"kg","Eletrodos 46 x 2.5",null,null,null,null,null,null,null,null,null,null,28,null,null,null,null,null,null,null,null,null,null,null,null,null,null,null,null,null,null,null,null,null,null,null,null,35.15,null,null,null,null,null,null,63.5,null,null,null,null,null,null,null,null,null,null,null,null,null,null,null,null,null,null,null,null,null,null,null,null,null,null,null,null,null,null,null,null,{"$f":"AVERAGE(AW173:CB173,F173:AU173)","v":31.574999999999999},31.58,3031.68]
["990605412 - 2",172,76,"kg","Eletrodos 46 x 3.25",null,null,null,null,null,null,null,null,null,null,24,null,null,null,null,null,null,36.700000000000003,null,null,null,null,null,null,null,null,null,null,null,null,null,null,null,null,null,null,null,null,null,null,null,null,29.5,null,null,null,null,null,null,null,null,null,null,null,null,null,null,null,null,null,null,null,null,null,null,null,null,null,null,null,null,null,null,null,null,{"$f":"AVERAGE(F174:CB174)","v":30.066666666666666},30.07,2285.3200000000002]
["990605412 - 3",173,71,"kg","Eletrodos 48 x 2.5",null,null,null,null,null,null,null,null,null,null,28,null,null,null,null,null,null,null,null,null,null,null,null,null,null,null,null,null,null,null,null,null,null,null,null,null,null,null,30.78,null,null,null,null,null,null,null,null,null,null,null,null,null,null,null,null,null,null,null,null,null,null,null,null,null,null,null,null,null,null,null,null,null,null,null,null,{"$f":"AVERAGE(F175:CB175)","v":29.39},29.39,2086.69]
["990605412 - 4",174,71,"kg","Eletrodos 48 x 3.25",null,null,null,null,null,null,null,null,null,null,29,null,null,null,null,null,null,null,39.99,null,null,null,null,null,null,null,null,null,null,null,null,null,null,null,null,null,null,null,null,null,null,null,null,null,null,null,null,null,null,null,null,null,null,null,null,null,null,null,null,null,null,null,null,null,null,null,null,null,null,null,null,null,null,null,null,{"$f":"AVERAGE(F176:CB176)","v":34.495000000000005},34.5,2449.5]
["990608083 - 1",175,358,"un","Engate Rápido 1/2-3/4 Com Adaptador Para Mangueira 1/2",null,null,null,null,null,null,null,null,null,1.84,null,null,null,null,null,null,null,null,null,null,null,19.899999999999999,29.9,null,null,null,null,null,null,null,null,null,null,null,null,null,null,null,null,null,null,null,null,null,null,null,null,null,null,null,null,null,null,null,null,null,null,null,null,null,null,null,null,null,null,null,null,null,null,null,null,null,null,null,null,{"$f":"AVERAGE(P177:CB177,F177:N177)","v":24.9},24.9,8914.1999999999989]
[null,176,35,"un","Enrolador de mangueira 1/2\" até 55 metros, com rodinhas",null,null,null,null,null,null,null,null,null,null,null,null,null,null,null,null,null,null,119.9,null,null,154.9,null,null,null,null,null,null,null,null,null,null,null,null,null,null,null,null,null,null,null,null,null,null,null,null,null,null,null,null,null,null,null,null,null,null,null,null,null,null,null,null,null,null,null,null,null,null,null,null,null,null,205.2,null,null,{"$f":"AVERAGE(F178:CB178)","v":160},160,5600]
[null,177,42,"un","Enxada Sacho com 1 ponta (Sacho coração) com cabo de 1,20m",null,null,null,null,null,null,null,null,null,null,null,null,null,null,null,null,null,null,55.9,null,null,null,null,34.9,null,null,null,null,null,null,null,null,null,null,null,null,null,null,null,25.69,null,null,null,null,null,null,null,null,null,null,null,null,null,null,null,null,null,null,null,null,null,null,null,null,null,null,null,null,null,null,null,null,null,null,null,{"$f":"AVERAGE(Y179:CB179,F179:W179)","v":30.295000000000002},30.3,1272.6000000000001]
[null,178,41,"un","Enxada Sacho com 1 ponta (Sacho coração) com cabo de 60cm",null,null,null,null,null,null,null,null,null,null,null,null,null,null,null,null,null,null,36.72,null,null,34.229999999999997,null,null,null,null,null,null,null,null,null,null,null,null,null,null,null,null,null,null,null,null,null,null,null,null,null,null,null,null,null,null,null,null,null,null,null,null,null,null,null,null,null,null,null,null,null,null,null,null,null,null,null,null,null,{"$f":"AVERAGE(F180:CB180)","v":35.474999999999994},35.479999999999997,1454.6799999999998]
[null,179,40,"un","Enxada Sacho com 2 pontas com cabo de 1,20m",null,null,null,null,null,null,null,null,null,null,null,null,null,null,null,null,null,null,null,null,null,52.38,null,33.85,null,null,null,null,null,null,null,null,null,null,null,null,null,null,null,null,null,null,null,null,null,null,null,null,null,null,null,null,null,null,null,null,null,null,null,null,null,null,null,null,null,null,null,null,null,null,null,null,53.1,null,null,46.443333333333335,46.44,1857.6]
[null,180,40,"un","Enxada Sacho com 2 pontas com cabo de 60cm",null,null,null,null,null,null,null,null,null,null,null,null,null,null,null,null,null,null,49.9,null,null,null,null,31.9,null,null,null,null,null,null,null,null,null,null,null,null,null,null,null,null,null,null,null,null,null,null,null,null,null,null,null,null,null,null,null,null,null,null,null,null,null,null,null,null,null,null,null,null,null,null,null,null,47.4,null,null,43.066666666666663,43.07,1722.8]
["10106912 - 2",181,180,"un","Enxada sul olho redondo 19 cm - com cabo de madeira 130 cm",null,null,null,null,null,null,null,null,null,null,null,null,null,null,null,null,null,null,null,46.99,null,null,null,null,null,null,null,null,null,null,null,null,null,null,null,null,null,null,null,null,null,null,null,null,null,null,null,null,null,null,null,null,null,null,null,null,null,null,46.09,null,null,null,null,null,null,46.31,null,null,null,null,null,null,null,null,null,46.463333333333338,46.46,8362.7999999999993]
["10119026 - 6",182,34,"un","Escada alumínio extensiva até 5 m mínimo 30 degraus suporte 150 kg peso máximo 10 kg",null,null,null,null,null,null,null,null,null,null,null,null,null,null,null,null,null,null,null,null,null,null,null,null,null,null,null,null,null,813.93,null,null,null,null,null,null,null,null,null,null,null,null,null,null,null,null,817.31,null,null,null,699.9,null,null,null,null,null,null,null,null,null,null,null,null,null,null,null,null,null,null,null,null,null,null,null,null,777.04666666666662,777.05,26419.699999999997]
["10119026 - 5",183,54,"un","ESCADA ALUMÍNIO MÍNIMO 5 DEGRAUS suporte 100Kg peso máximo 3,5 Kg",null,null,null,null,null,null,null,null,null,null,null,null,null,null,null,null,null,null,139.9,null,null,147,134.9,null,null,null,null,null,null,null,null,null,null,null,null,null,null,null,null,null,null,null,null,null,null,null,null,null,null,null,null,null,null,null,null,null,null,null,null,null,null,null,null,null,null,null,null,null,null,null,null,null,null,null,null,140.6,140.6,7592.4]
["10119026 - 7",184,38,"un","Escada extensiva de fibra e degraus em aluminio 22X37 degraus 6,60 x 11,10 metros (aproximado) carga de trabalho minimo 120kg",null,null,null,null,null,null,null,null,null,null,null,null,null,null,null,null,null,null,2099,1236.99,null,null,null,null,null,null,null,null,null,null,null,null,null,null,null,null,null,null,null,null,null,null,null,null,null,1766.91,null,null,null,null,null,null,null,null,null,null,null,null,null,null,null,null,null,null,null,null,null,null,null,null,null,null,null,null,null,1700.9666666666665,1700.97,64636.86]
[null,185,144,"un","esguicho metalico para jardim tipo pistola com engate rapido de 1/2\"",null,null,null,null,null,null,null,null,null,null,48,null,null,null,null,null,null,null,76.900000000000006,null,41.65,null,null,null,null,null,null,null,null,127.94,null,null,null,null,null,null,null,null,null,null,null,null,null,null,null,null,null,null,null,null,null,null,null,null,null,null,null,null,null,null,null,null,null,null,null,null,null,null,null,null,null,null,null,null,null,{"$f":"AVERAGE(AJ187:CB187,F187:AH187)","v":55.516666666666673},55.52,7994.88]
[null,186,139,"un","esguicho plastico reforçado para jardim tipo pistola com minimo 5 funções e com engate rapido de 1/2\"",null,null,null,null,null,null,null,null,null,null,130,null,null,null,null,null,null,null,49.9,null,41.9,null,null,null,null,null,null,null,null,null,null,null,null,null,null,null,null,null,null,null,null,null,null,null,null,null,null,null,null,null,null,null,null,null,null,null,null,null,null,null,null,null,null,null,null,null,null,null,null,null,null,null,null,null,null,{"$f":"AVERAGE(Q188:CB188,F188:O188)","v":45.9},45.9,6380.0999999999995]
["990606756 - 4",187,26,"un","ESMERILHADEIRA ANGULAR 4.1/2 EAV860 - 860W 220V",null,null,null,null,null,null,null,null,null,null,430,null,null,null,null,null,null,null,268,null,null,null,null,289.89999999999998,null,null,null,null,null,null,null,null,null,null,null,null,null,null,null,null,null,null,null,null,null,null,null,null,null,null,null,null,329.99,null,null,null,null,null,null,null,null,null,null,null,null,null,null,null,null,null,null,null,null,null,null,{"$f":"AVERAGE(Q189:CB189,F189:O189)","v":295.96333333333331},295.95999999999998,7694.9599999999991]
["990607221 - 2",188,130,"un","Espátula Metálica Rígida 10cm Com Cabo de Madeira",null,null,null,null,null,null,null,null,null,null,18,null,null,null,null,null,null,null,null,null,null,null,null,null,null,null,null,null,null,null,null,12.9,null,null,null,null,null,null,null,10.99,null,null,null,null,null,null,null,null,null,null,null,null,null,null,null,null,null,null,null,null,null,null,null,null,null,11.39,null,null,null,null,null,null,null,null,null,{"$f":"AVERAGE(F190:CB190)","v":13.32},13.32,1731.6000000000001]
["38012134 - 4",189,64,"un","ESQUADRO 12 POL / 304 MM CABO ALUMINIO",null,null,null,null,null,null,null,null,null,16.440000000000001,43,null,null,null,null,null,null,null,null,null,37.58,36.9,null,null,null,null,null,null,null,null,null,null,null,null,null,null,null,null,null,null,null,null,null,null,null,null,null,null,null,null,null,null,null,null,null,null,null,null,null,null,null,null,null,null,null,null,null,null,null,null,null,null,null,null,null,{"$f":"AVERAGE(P191:CB191)","v":39.159999999999997},39.159999999999997,2506.2399999999998]
[null,190,58,"un","Facão Mato 16 Polegadas com Bainha em Couro Reforçada",null,null,null,null,null,null,null,null,null,null,65,null,null,null,null,null,null,null,null,null,43.17,null,null,null,null,null,null,null,null,null,null,null,null,null,null,149.28,null,null,null,null,null,null,null,null,null,null,null,null,null,null,null,null,null,null,null,null,null,null,null,null,null,null,null,null,null,null,null,null,null,null,null,null,null,null,null,{"$f":"AVERAGE(Z192,P192)","v":54.085000000000001},54.09,3137.2200000000003]
["990605414 - 1",191,36,"tb","Fio de estanho para solda - 1 mm x 25 gr",null,null,null,null,null,null,null,null,null,null,19,null,null,null,null,null,null,null,12.99,null,13,null,15.23,null,null,null,null,null,null,null,null,null,null,null,null,null,null,null,null,null,null,null,null,null,null,null,null,null,null,null,null,null,null,null,null,null,null,null,null,null,null,null,null,null,null,null,null,null,null,null,null,null,null,null,null,{"$f":"AVERAGE(F193:CB193)","v":15.055},15.06,542.16]
["80017907 - 2",192,371,"un","Fita adesiva antiderrapante 50 mm X 5 m preta",null,null,null,null,null,null,null,null,null,null,24,null,null,null,null,null,null,null,16.989999999999998,22.59,null,null,null,null,null,null,null,null,null,null,null,null,null,null,null,null,null,null,null,null,null,null,null,null,null,null,null,null,null,null,null,null,null,null,null,null,null,null,null,null,null,null,null,null,null,null,null,null,null,null,null,null,null,null,null,{"$f":"AVERAGE(F194:CB194)","v":21.193333333333332},21.19,7861.4900000000007]
["10103282 - 1",193,371,"rl","Fita isolante 19 mm x 10 metros - preta",null,null,null,null,null,null,null,null,null,null,4,null,null,null,null,null,null,null,4.29,3.49,null,null,null,null,null,null,null,null,null,null,null,null,null,null,null,null,null,null,null,null,null,null,null,null,null,null,null,null,null,null,null,null,null,null,null,null,null,null,null,null,null,null,null,null,null,null,null,null,null,null,null,null,null,null,null,{"$f":"AVERAGE(F195:CB195)","v":3.9266666666666663},{"$f":"ROUND(CC195,2)","v":3.93},{"$f":"CD195*C195","v":1458.03}]
["23100022 - 3",194,86,"rl","Fita isolante 19 mm x 10 metros - verde",null,null,null,null,null,null,null,null,null,null,null,null,null,null,null,null,null,null,null,2.39,null,null,null,2.95,null,null,null,null,null,null,null,null,null,null,null,null,null,null,null,null,null,null,null,null,null,2.76,null,null,null,null,null,null,null,null,null,null,null,null,null,null,null,null,null,null,null,null,null,null,null,null,null,null,null,null,null,{"$f":"AVERAGE(F196:CB196)","v":2.6999999999999997},2.7,232.20000000000002]
[null,195,50,"un","foice, foicinha rocadeira para poda, curta, cabo 40cm",null,null,null,null,null,null,null,null,null,null,60,null,null,null,null,null,null,null,null,null,null,46.9,49.9,null,null,null,null,null,null,null,null,null,null,null,null,null,null,null,null,null,null,null,null,null,null,null,null,null,null,null,null,null,null,null,null,null,null,null,null,null,null,null,null,null,null,null,null,null,null,null,null,null,null,null,null,{"$f":"AVERAGE(F197:CB197)","v":52.266666666666673},52.27,2613.5]
["990608006 - 1",196,28,"un","Funil sanfonado para abastecimento de combustível/ óleo",null,null,null,null,null,null,null,null,null,null,30,null,null,null,null,null,null,null,15.9,null,null,null,null,null,null,null,null,null,null,null,null,null,null,null,null,null,null,null,null,null,null,16.309999999999999,null,null,null,null,null,null,null,null,null,null,null,null,null,null,null,null,null,null,null,null,null,null,null,null,null,null,null,null,null,null,null,null,null,{"$f":"AVERAGE(Q198:CB198)","v":16.105},16.11,451.08]
["990607030 - 2",197,19,"un","Furadeira de impacto 1/2\" 750 W",null,null,null,null,null,null,null,null,null,null,600,null,null,null,null,null,null,null,null,null,null,399.9,null,null,null,null,null,null,null,null,null,null,null,null,null,null,null,null,null,null,null,479.99,null,null,null,null,null,null,null,null,null,null,null,null,null,null,null,null,null,null,null,null,null,null,null,null,null,null,null,null,null,null,null,null,null,{"$f":"AVERAGE(Q199:CB199)","v":439.94499999999999},439.95,8359.0499999999993]
["990608007 - 1",198,85,"un","GARFO ROLO 400 X 23CM C/GAIOLA S/ROSCA",null,null,null,null,null,null,null,null,null,null,12,null,null,null,null,null,null,null,null,null,null,null,11.85,null,null,null,null,null,null,null,null,12.9,null,null,null,null,null,null,null,null,null,null,null,null,null,null,null,null,null,null,null,null,null,null,null,null,null,null,null,null,null,null,null,null,null,null,null,null,null,null,null,null,null,null,null,{"$f":"AVERAGE(F200:CB200)","v":12.25},12.25,1041.25]
["990608008 - 1",199,85,"un","GARFOS PARA ROLO DE PINTURA GAIOLA EM AÇO COM 23 CM",null,null,null,null,null,null,null,null,null,8.06,null,null,null,null,null,null,null,null,null,null,13,null,null,null,null,null,null,null,null,null,null,null,null,null,null,null,null,null,null,null,null,11.58,null,null,null,null,null,null,null,null,null,null,null,null,null,null,null,null,null,null,null,null,null,null,null,null,null,null,null,null,null,null,null,null,null,{"$f":"AVERAGE(F201:CB201)","v":10.88},10.88,924.80000000000007]
["10119036 - 2",200,4,"un","Gerador de Energia a Gasolina, 8 KVA, Monofásico Partida Elétrica - Tipo do Motor: 4 tempos, 8 KVA, Monofásico ,1 Cilindro, Refrigerado a Ar Potência: 15 HP / 3600RPM Cilindrada: 420cc Partida: Elétrica Combustível: Gasolina Capacidade do Tanque: 20 litros Consumo de Combustível (l/h): 2.5L/h Capacidade do Óleo do Cárter: 1.1 litros Autonomia (50% da Carga): 8H Alerta de nível de Óleo: Sim Sistema de acionamento: Transistor Magnético Nível de Ruído: 78 dB",null,null,null,null,null,null,null,null,null,null,5445,null,null,null,null,null,null,null,4989.8999999999996,null,null,null,null,null,null,null,null,null,null,null,null,null,null,null,null,null,null,null,null,null,null,null,null,null,null,6004,null,null,null,null,null,null,null,null,null,null,null,null,null,null,null,null,4049.1,null,null,null,null,null,null,null,null,null,null,null,null,{"$f":"AVERAGE(F202:CB202)","v":5122},5122,20488]
["990608009 - 1",201,18,"un","Hidrolavadora turbo 2800 indução 1900W 2450PSI",null,null,null,null,null,null,null,null,null,null,null,null,null,null,null,null,null,null,null,null,null,1358.13,null,null,null,null,null,null,null,1399.99,null,null,null,null,null,null,null,null,1329.99,null,null,null,null,null,null,null,null,null,null,null,null,null,null,null,null,null,null,null,null,null,null,null,null,null,null,null,null,null,null,null,null,null,null,null,null,{"$f":"AVERAGE(F203:BH203)","v":1362.7033333333331},1362.7,24528.600000000002]
[null,202,127,"un","Irrigador De Jardim Giratório Automático Aspersor Irrigação Para Gramado, bocal rotarivo 360, com engate rapido de 1/2\"",null,null,null,null,null,null,null,null,null,null,88,null,null,null,null,null,null,null,25.9,null,null,16.899999999999999,null,null,null,null,null,null,null,null,null,null,null,null,null,null,null,null,null,null,null,null,null,null,null,null,null,null,null,null,null,null,null,null,null,null,null,null,null,null,null,null,null,null,null,null,null,null,null,null,null,null,null,null,null,{"$f":"AVERAGE(AA204,X204)","v":21.4},21.4,2717.7999999999997]
["990608149 - 1",203,34,"kit","Jogo CHAVE COMBINADA 6 A 22MM",null,null,null,null,null,null,null,null,null,null,140,null,null,null,null,null,null,null,75.900000000000006,null,null,59.8,null,null,null,null,null,null,null,null,null,null,null,null,null,null,null,null,null,null,null,null,null,null,null,null,null,null,null,null,null,null,null,null,null,null,null,null,null,null,null,null,null,null,null,null,null,null,null,null,null,null,null,null,null,{"$f":"AVERAGE(Q205:BH205)","v":67.849999999999994},67.849999999999994,2306.8999999999996]
["38012179 - 3",204,30,"kit","Jogo CHAVE COMBINADA 6 A 32MM C/12PC",null,null,null,null,null,null,null,null,null,null,320,null,null,null,null,null,null,null,null,null,null,174.18,null,null,null,null,null,null,null,null,null,null,null,null,null,null,null,null,null,null,null,null,null,null,null,null,null,null,null,null,159.88999999999999,null,null,null,null,null,null,null,null,null,null,null,null,null,null,null,null,null,null,null,null,null,null,null,null,{"$f":"AVERAGE(Q206:BH206)","v":167.035},167.04,5011.2]
["10119621 - 3",205,35,"kit","Jogo de chave Allen estrela tipo L longa tamanho t10 a t50 9peças",null,null,null,null,null,null,null,null,null,null,40,null,null,null,null,null,null,null,20.99,null,null,43.69,null,null,null,null,null,null,null,null,null,null,null,null,null,null,null,null,null,null,null,null,null,null,null,null,null,null,null,null,null,null,null,null,null,null,null,null,null,null,null,null,null,null,null,null,null,null,null,null,null,null,null,null,null,{"$f":"AVERAGE(Y207:BH207,F207:W207)","v":41.844999999999999},41.85,1464.75]
["10119621 - 4",206,35,"kit","Jogo de chave allen hexagonal longa de 1,5 a 12mm com 12 pç",null,null,null,null,null,null,null,null,null,null,42,null,null,null,null,null,null,null,46.71,null,null,46.7,null,null,null,null,null,null,null,null,null,null,null,null,null,null,null,null,null,null,null,null,null,null,null,null,null,null,null,null,null,null,null,null,null,null,null,null,null,null,null,null,null,null,null,null,null,null,null,null,null,null,null,null,null,{"$f":"AVERAGE(F208:BH208)","v":45.136666666666677},45.14,1579.9]
[null,207,39,"un","Jogo de Chave de boca 6 a 32mm - Jogo com média de 12 chaves.",null,null,null,null,null,null,null,null,null,null,null,null,null,null,null,null,null,null,null,121.99,null,174.18,129,null,null,null,null,null,null,null,null,null,null,null,null,null,null,null,null,null,null,null,null,null,null,null,null,null,null,null,null,null,null,null,null,null,null,null,null,null,null,null,null,null,null,null,null,null,null,null,null,null,null,null,null,{"$f":"AVERAGE(F209:BH209)","v":141.72333333333333},141.72,5527.08]
["10119624 - 7",208,50,"kit","Jogo de chave de fenda (JOGO COM 5 PÇ )",null,null,null,null,null,null,null,null,null,null,62,null,null,null,null,null,null,null,null,null,null,49.88,90.99,null,null,null,null,null,null,null,null,null,null,null,null,null,null,null,null,null,null,null,null,null,null,null,null,null,null,null,null,null,null,null,null,null,null,null,null,null,null,null,null,null,null,null,null,null,null,null,null,null,null,null,null,{"$f":"AVERAGE(AC210:BH210,F210:AA210)","v":55.94},55.94,2797]
["10119624 - 8",209,48,"kit","Jogo de chave philips (JOGO COM 5 PÇ)",null,null,null,null,null,null,null,null,null,null,62,null,null,null,null,null,null,null,null,null,62.1,54.9,null,null,null,null,null,null,null,null,null,null,null,null,null,null,null,null,null,null,null,null,null,null,null,null,null,null,null,null,null,null,null,null,null,null,null,null,null,null,null,null,null,null,null,null,null,null,null,null,null,null,null,null,null,{"$f":"AVERAGE(F211:BH211)","v":59.666666666666664},59.67,2864.16]
["990608010 - 1",210,30,"kit","Jogo de chave SOQUETES E CATRACA 1/2 30PÇ TENDO 19 SOQUETES SEXTAVADOS DO 8 AO 32MM E 6 SOQUETES DO 8 AO 16MM E 2 SOQUETES DE VELA",null,null,null,null,null,null,null,null,null,null,null,null,null,null,null,null,null,null,297.89999999999998,170.99,null,172.99,null,null,null,null,null,null,null,null,null,null,null,null,null,null,null,null,null,null,null,null,null,null,null,null,null,null,null,null,null,null,null,null,null,null,null,null,null,null,null,null,null,null,null,null,null,null,null,null,null,null,null,null,null,{"$f":"AVERAGE(F212:BH212)","v":213.96},213.96,6418.8]
["990608011 - 2",211,62,"kit","Kit catraca de 1.5 tonelada com cinta de 9 METROS",null,null,null,null,null,null,null,null,null,null,null,null,null,null,null,null,null,null,null,null,46.46,null,null,null,null,null,null,null,null,null,null,null,null,null,null,null,null,null,null,60.99,null,null,null,null,null,null,68.48,null,null,null,null,null,null,null,null,null,null,null,null,null,null,null,null,null,null,null,null,null,null,null,null,null,null,null,null,{"$f":"AVERAGE(F213:BH213)","v":58.643333333333338},58.64,3635.68]
["990608011 - 1",212,99,"kit","Kit catraca de 800KG com cinta de 3 METROS",null,null,null,null,null,null,null,null,null,null,null,null,null,null,null,null,null,null,49.9,null,57.79,37,null,null,null,null,null,null,null,null,null,null,null,null,null,null,null,null,null,null,null,null,null,null,null,null,null,null,null,null,null,null,null,null,null,null,null,null,null,null,null,null,null,null,null,null,null,null,null,null,null,null,null,null,null,{"$f":"AVERAGE(F214:BH214)","v":48.23},48.23,4774.7699999999995]
[null,213,23,"kit","Kit conjunto ferramentas manuais, profissionais para jardinagens com 5 ferramentas diferentes. em aço inoxidavel com cabo de madeira.",null,null,null,null,null,null,null,null,null,null,null,null,null,null,null,null,null,null,null,null,128.41,null,null,null,null,null,null,null,null,null,null,null,null,null,null,null,null,null,116.19,null,null,null,null,null,null,null,184.62,null,null,null,null,null,null,null,null,null,null,null,null,null,null,null,null,null,null,null,null,null,null,null,null,null,null,null,null,{"$f":"AVERAGE(F215:BH215)","v":143.07333333333335},143.07,3290.6099999999997]
[null,214,39,"kit","Kit Para Jardinagem Com 10 Peças Com Maleta, Contendo: \n2 pás; 1 sacho de 3 pontas; 2 tesouras; 1 spray para água \n2 mini pazinha; 1 mini rastelinho; 1 foice pequena para jardinagem",null,null,null,null,null,null,null,null,null,null,null,null,null,null,null,null,null,null,193.9,null,119.9,124.9,null,null,null,null,null,null,null,null,null,null,null,null,null,null,null,null,null,null,null,null,null,null,null,null,null,null,null,null,null,null,null,null,null,null,null,null,null,null,null,null,null,null,null,null,null,null,null,null,null,null,null,null,null,{"$f":"AVERAGE(Z216:AA216,X216)","v":146.23333333333335},146.22999999999999,5702.9699999999993]
[null,215,38,"un","LANTERNA DE LED LUZ ULTRAVIOLETA, recarregável, 220v",null,null,null,null,null,null,null,null,null,null,null,null,null,null,null,null,null,null,null,null,34.99,44.9,42.9,null,null,null,null,null,null,null,null,null,null,null,null,null,null,null,null,null,null,null,null,null,null,null,null,null,null,null,null,null,null,null,null,null,null,null,null,null,null,null,null,null,null,null,null,null,null,null,null,null,null,null,null,{"$f":"AVERAGE(F217:CB217)","v":40.93},40.93,1555.34]
["990608012 - 1",216,63,"un","LANTERNA HOLOFOTE DE LED A BATERIA RECARREGAVEL A TIRACOL MINIMO 30W",null,null,null,null,null,null,null,null,null,null,null,null,null,null,null,null,null,null,null,null,110.39,null,202.03,null,null,null,null,null,null,null,null,null,null,null,null,null,null,null,null,null,null,null,null,null,null,null,189.9,null,null,null,null,null,null,null,null,null,null,null,null,null,null,null,null,null,null,null,null,null,null,null,null,null,null,null,null,{"$f":"AVERAGE(AA218:CB218,F218:Y218)","v":195.965},195.97,12346.11]
["10119043 - 3",217,100,"un","LAPIS CARPINTEIRO",null,null,null,null,null,null,null,null,null,1.39,3,null,null,null,null,null,null,null,2.5,1.59,null,null,null,null,null,null,null,null,null,null,null,null,null,null,null,null,null,null,null,null,null,null,null,null,null,null,null,null,null,null,null,null,null,null,null,null,null,null,null,null,null,null,null,null,null,null,null,null,null,null,null,null,null,null,null,{"$f":"AVERAGE(Q219:CB219,F219:O219)","v":1.8266666666666664},1.83,183]
["58030047 - 4",218,40,"un","Lavadora de Alta Pressão 2200psi 1800W 220 volts",null,null,null,null,null,null,null,null,null,null,790,null,null,null,null,null,null,null,null,null,809.91,664.36,null,null,null,null,null,null,null,null,null,null,null,null,null,null,null,null,null,null,null,null,null,null,null,null,null,null,null,null,null,null,null,null,null,null,null,null,null,null,null,null,null,null,null,null,null,null,null,null,null,null,null,null,null,{"$f":"AVERAGE(F220:CB220)","v":754.75666666666666},754.76,30190.400000000001]
["58030047 - 2",219,14,"un","Lavadora de alta pressão com aproximadamente 3600 PSI a gasolina com rodas 14 HP - Mangueira com aproximadamente 10 metros de comprimento.",null,null,null,null,null,null,null,null,null,null,null,null,null,null,null,null,null,7367,null,null,7492.81,null,null,null,null,null,null,null,null,null,null,null,null,null,null,null,null,null,null,null,null,6499,null,null,null,null,null,null,null,null,null,null,null,null,null,null,null,null,null,null,null,null,null,null,null,null,null,null,null,null,null,null,null,null,null,{"$f":"AVERAGE(AU221,Z221,W221)","v":7119.6033333333335},7119.6,99674.400000000009]
["10119048 - 2",220,73,"un","Lima motosserra 8\"",null,null,null,null,null,null,null,null,null,4.2699999999999996,null,null,null,null,null,null,null,null,7.99,null,9.32,null,null,null,null,null,null,null,null,null,null,null,null,null,null,null,null,null,null,null,null,null,null,null,null,null,null,null,null,null,null,null,null,null,null,null,null,null,null,null,null,null,null,null,null,null,null,null,null,null,null,null,null,null,null,{"$f":"AVERAGE(P222:CB222,F222:N222)","v":8.6550000000000011},8.66,632.18000000000006]
["10119048 - 3",221,63,"un","Lima rotativa para retífica",null,null,null,null,null,null,null,null,null,null,78,null,null,null,null,null,null,null,null,null,24.43,15.25,21.07,null,null,null,null,null,null,null,null,null,null,null,null,null,null,null,null,null,null,null,null,null,null,null,null,null,null,null,null,null,null,null,null,null,null,null,null,null,null,null,null,null,null,null,null,null,null,null,null,null,null,null,null,{"$f":"AVERAGE(Q223:CB223,F223:O223)","v":20.25},20.25,1275.75]
["38012199 - 2",222,87,"un","LINHA PARA PEDREIRO 0,80MM X 100M",null,null,null,null,null,null,null,null,null,null,12,null,null,null,null,null,null,null,14.9,null,null,null,null,null,null,null,null,null,null,null,null,null,null,null,null,null,null,null,null,null,null,null,null,null,null,null,null,null,null,null,8.7799999999999994,null,null,null,null,null,null,null,null,null,null,null,null,null,null,null,null,null,null,null,null,null,null,null,null,{"$f":"AVERAGE(F224:CB224)","v":11.893333333333333},11.89,1034.43]
["990605417 - 1",223,500,"fl","Lixa d’agua grão 120 - 225 mm x 275 mm (aproximado)",null,null,null,null,null,null,null,null,null,null,3,null,null,null,null,null,null,null,null,3.69,2.9,null,null,null,null,null,null,null,null,null,null,null,null,null,null,null,null,null,null,null,null,null,null,null,null,null,null,null,null,null,null,null,null,null,null,null,null,null,null,null,null,null,null,null,null,null,null,null,null,null,null,null,null,null,null,{"$f":"AVERAGE(F225:CB225)","v":3.1966666666666668},3.2,1600]
["990605417 - 2",224,510,"fl","Lixa d’agua grão 150 - 225 mm x 275 mm (aproximado)",null,null,null,null,null,null,null,null,null,null,3,null,null,null,null,null,null,null,1.89,null,null,1.96,null,null,null,null,null,null,null,null,null,null,null,null,null,null,null,null,null,null,null,null,null,null,null,null,null,null,null,null,null,null,null,null,null,null,null,null,null,null,null,null,null,null,null,null,null,null,null,null,null,null,null,null,null,2.2833333333333332,2.2799999999999998,1162.8]
["990605417 - 5",225,510,"fl","Lixa d’água grão 200 - 225 mm x 275 mm (aproximado)",null,null,null,null,null,null,null,null,null,null,3,null,null,null,null,null,null,null,null,null,null,2.86,2.04,null,null,null,null,null,null,null,null,null,null,null,null,null,null,null,null,null,null,null,null,null,null,null,null,null,null,null,null,null,null,null,null,null,null,null,null,null,null,null,null,null,null,null,null,null,null,null,null,null,null,null,null,2.6333333333333333,2.63,1341.3]
["990605417 - 3",226,503,"fl","Lixa d’agua grão 320 - 225 mm x 275 mm (aproximado)",null,null,null,null,null,null,null,null,null,null,3,null,null,null,null,null,null,null,null,null,3.72,null,null,null,null,null,null,null,null,null,null,null,null,null,null,null,null,null,null,2.89,null,null,null,null,null,null,null,null,null,null,null,null,null,null,null,null,null,null,null,null,null,null,null,null,null,null,null,null,null,null,null,null,null,null,null,3.2033333333333336,3.2,1609.6000000000001]
["990605417 - 4",227,503,"fl","Lixa d’agua grão 400 - 225 mm x 275 mm (aproximado)",null,null,null,null,null,null,null,null,null,null,3,null,null,null,null,null,null,null,null,null,null,null,null,null,null,null,null,null,null,3.77,null,null,null,null,null,null,null,null,null,3.09,null,null,null,null,null,null,null,null,null,null,null,null,null,null,null,null,null,null,null,null,null,null,null,null,null,null,null,null,null,null,null,null,null,null,null,3.2866666666666666,3.29,1654.8700000000001]
["2040067 - 2",228,318,"fl","Lixa ferro grão 100 - 225 mm x 275 mm (aproximado)",null,null,null,null,null,null,null,null,null,null,3,null,null,null,null,null,null,null,null,5.99,2.5299999999999998,null,null,null,null,null,null,null,null,null,null,null,null,null,null,null,null,null,null,null,null,null,null,null,null,null,null,null,null,null,null,null,null,null,null,null,null,null,null,null,null,null,null,null,null,null,null,null,null,null,null,null,null,null,null,{"$f":"AVERAGE(Z230:CB230,F230:X230)","v":2.7649999999999997},2.77,880.86]
["2040067 - 3",229,318,"fl","Lixa ferro grão 60 - 225 mm x 275 mm (aproximado)",null,null,null,null,null,null,null,null,null,null,3,null,null,null,null,null,null,2.93,null,null,null,null,null,null,null,null,null,null,null,null,null,3.49,null,null,null,null,null,null,null,null,null,null,null,null,null,null,null,null,null,null,null,null,null,null,null,null,null,null,null,null,null,null,null,null,null,null,null,null,null,null,null,null,null,null,null,{"$f":"AVERAGE(F231:CB231)","v":3.14},3.14,998.5200000000001]
["2040067 - 4",230,318,"fl","Lixa ferro grão 80 - 225 mm x 275 mm (aproximado)",null,null,null,null,null,null,null,null,null,null,3,null,null,null,null,null,null,null,null,2.5499999999999998,null,null,null,null,null,null,null,null,null,null,null,3.49,null,null,null,null,null,null,null,null,null,null,null,null,null,null,null,null,null,null,null,null,null,null,null,null,null,null,null,null,null,null,null,null,null,null,null,null,null,null,null,null,null,null,null,{"$f":"AVERAGE(F232:CB232)","v":3.0133333333333332},3.01,957.18]
["990605418 - 1",231,145,"un","Lixa rotativa para retífica",null,null,null,null,null,null,null,null,null,null,80,null,null,null,null,null,null,null,11.89,null,12.97,null,null,null,null,null,null,null,null,null,null,null,null,null,null,null,null,null,null,null,null,null,null,null,null,12.9,null,null,null,null,null,null,null,null,null,null,null,null,null,null,null,null,null,null,null,null,null,null,null,null,null,null,null,null,null,{"$f":"AVERAGE(Q233:CB233)","v":12.586666666666666},12.59,1825.55]
[null,232,7,"un","Lixadeira Pneumática",null,null,null,null,null,null,null,null,null,null,null,null,null,null,null,null,null,null,239.9,null,null,178.91,null,null,null,null,null,null,null,null,null,null,null,null,null,null,null,null,null,null,null,null,null,null,null,null,null,null,null,null,null,null,null,null,null,null,null,null,null,null,null,null,161.1,null,null,null,null,null,null,null,null,null,null,null,null,{"$f":"AVERAGE(F234:CB234)","v":193.30333333333331},193.3,1353.1000000000001]
["990608038 - 1",233,26,"un","Lixadeira treme treme 220V",null,null,null,null,null,null,null,null,null,135.13999999999999,null,null,null,null,null,null,null,null,470.9,null,null,269,null,null,null,null,null,null,null,null,null,null,null,null,null,null,null,null,null,null,null,null,null,null,null,null,null,null,null,null,null,null,null,null,null,null,null,null,null,null,null,null,null,null,null,null,null,null,null,null,null,null,null,null,null,{"$f":"AVERAGE(P235:CB235,F235:N235)","v":369.95},369.95,9618.6999999999989]
["990605419 - 1",234,99,"un","Lona encerada 8 x 6 m",null,null,null,null,null,null,null,null,null,null,null,null,null,null,null,null,null,null,null,null,null,null,null,null,null,null,null,null,null,null,null,null,null,null,null,null,null,null,null,null,null,null,null,null,null,null,null,null,null,null,null,null,null,null,null,null,null,null,null,null,null,null,null,null,null,null,null,null,null,2443.9899999999998,2508,3682.91,null,null,null,{"$f":"AVERAGE(F236:CB236)","v":2878.2999999999997},2878.3,284951.7]
["990605420 - 3",235,6,"un","Macaco hidráulico - acionamento a ar - 30 toneladas",null,null,null,null,null,null,null,null,null,null,null,null,null,null,null,null,null,null,839.9,null,1060.19,null,null,null,null,null,null,null,null,null,null,null,null,null,null,null,null,null,null,null,null,null,null,null,null,null,1589.85,null,null,null,null,null,null,null,null,null,null,null,null,null,null,null,null,null,null,null,null,null,null,null,null,null,null,null,null,{"$f":"AVERAGE(BA237:CB237,F237:AY237)","v":950.04500000000007},950.05,5700.2999999999993]
["990605420 - 2",236,11,"un","Macaco hidráulico 30 toneladas",null,null,null,null,null,null,null,null,null,null,980,null,null,null,null,null,null,null,953.49,null,null,null,null,null,null,null,null,null,null,null,null,null,null,null,null,null,null,null,null,null,null,null,null,null,null,null,null,null,null,null,null,null,null,null,793.56,null,null,null,null,null,null,null,null,null,null,null,null,null,null,null,null,null,null,null,null,{"$f":"AVERAGE(F238:CB238)","v":909.01666666666677},909.02,9999.2199999999993]
["990605420 - 1",237,17,"un","Macaco hidráulico jacaré 02 toneladas",null,null,null,null,null,null,null,null,null,null,120,null,null,null,null,null,null,null,1099.9000000000001,1139.99,null,null,null,null,null,null,null,null,null,null,null,null,null,null,null,null,null,null,null,null,null,null,null,null,null,null,null,null,null,null,null,null,null,null,null,null,null,null,null,null,null,null,null,null,null,null,null,null,null,null,null,null,null,null,null,{"$f":"AVERAGE(Q239:CB239,F239:O239)","v":1119.9450000000002},1119.95,19039.150000000001]
["990609301 - 1",238,14,"un","Maçarico multiprofissional portátil de acendimento automático com controlador de chama, com refil de gás. Ideal para soldagem de juntas de tubos, retirada de pinturas antigas, entre outros.",null,null,null,null,null,null,null,null,null,null,null,null,null,null,null,null,null,null,null,null,35.99,29.99,null,null,null,null,null,null,null,null,null,null,null,null,null,null,null,null,52.9,null,null,null,null,null,null,null,null,null,null,null,null,null,null,null,null,null,null,null,null,null,null,null,null,null,null,null,null,null,null,null,null,null,null,null,null,{"$f":"AVERAGE(F240:CB240)","v":39.626666666666665},39.630000000000003,554.82000000000005]
[null,239,44,"un","Machadinha com minimo de 500G com Cabo Em Fibra De Vidro Emborrachado e comprimento minimo de 30cm",null,null,null,null,null,null,null,null,null,27.28,80,null,null,null,null,null,null,null,null,null,40.770000000000003,null,null,null,null,null,null,null,null,null,null,null,null,null,null,null,null,null,42.9,null,null,null,null,null,null,null,null,null,null,null,null,null,null,null,null,null,null,null,null,null,null,null,null,null,null,null,null,null,null,null,null,null,null,null,null,{"$f":"AVERAGE(AR241,Z241,O241)","v":36.983333333333334},36.979999999999997,1627.12]
[null,240,47,"un","Machado com Cabo de Fibra 1,5Kg e comprimento total minimo de 80cm",null,null,null,null,null,null,null,null,null,null,null,null,null,null,null,null,null,null,137.61000000000001,null,null,null,null,null,null,null,null,null,null,null,null,null,null,null,null,null,null,null,121.12,null,null,119.99,null,null,null,null,null,null,null,null,null,null,null,null,null,null,null,null,null,null,null,null,null,null,null,null,null,null,null,null,null,null,null,null,null,{"$f":"AVERAGE(AU242,AR242,X242)","v":126.24000000000001},126.24,5933.28]
[null,241,75,"un","Maleta organizadora de ferramentas - Plástica",null,null,null,null,null,null,null,null,null,null,55,null,null,null,null,null,null,null,26.9,null,null,26.99,null,null,null,null,null,null,null,null,null,null,null,null,null,null,null,null,null,null,null,null,null,null,null,null,null,null,null,null,null,null,null,null,null,null,null,null,null,null,null,null,null,null,null,null,null,null,null,null,null,null,null,null,null,{"$f":"AVERAGE(Q243:CB243,F243:O243)","v":26.945},26.95,2021.25]
["990608013 - 1",242,530,"m","MANGUEIRA CRISTAL NIVEL SILICONADA 5/16 X 1,3MM",null,null,null,null,null,null,null,null,null,1.61,null,null,null,null,null,null,null,null,null,null,2.7589999999999999,null,null,null,null,null,null,null,null,null,null,null,null,null,null,2.57,null,null,null,null,null,null,null,null,null,null,null,null,null,null,null,null,null,null,null,null,null,null,null,null,null,null,null,null,null,null,null,null,null,null,null,null,null,null,null,{"$f":"AVERAGE(P244:CB244,F244:N244)","v":2.6644999999999999},2.66,1409.8000000000002]
[null,243,45,"un","Mangueira de Jardim Reforçada Trançada com Esguicho PVC - 30M",null,null,null,null,null,null,null,null,null,null,null,null,null,null,null,null,null,null,null,104.79,null,86.25,null,null,null,null,null,null,null,null,null,null,null,null,null,null,null,null,null,null,null,null,null,null,null,null,null,null,null,null,92.9,null,null,null,null,null,null,null,null,null,null,null,null,null,null,null,null,null,null,null,null,null,null,null,null,{"$f":"AVERAGE(F245:CB245)","v":94.64666666666669},94.65,4259.25]
["990605446 - 3",244,1706,"m","MANGUEIRA JARDIM SUPER FLEX 15 MM",null,null,null,null,null,null,null,null,null,3,7.5,null,null,null,null,null,null,null,null,null,3.278,3.34,null,null,null,null,null,null,null,null,null,null,null,null,null,null,null,null,null,null,null,null,null,null,null,null,null,null,null,null,null,null,null,null,null,null,null,null,null,null,null,null,null,null,null,null,null,null,null,null,null,null,null,null,null,{"$f":"AVERAGE(Q246:CB246,F246:O246)","v":3.206},3.21,5476.26]
["58030079 - 3",245,5,"un","Máquina cortadora de piso (concreto e asfalto) com motor a gasolina \nPotência mínima de 12 hp, com profundidade de corte mínima de 12 cm \ne máxima de 18 cm e diâmetro do disco mínimo de 350 mm.",null,null,null,null,null,null,null,null,null,null,6000,null,null,null,null,null,null,null,null,null,6616.28,null,null,null,null,null,null,null,null,null,null,null,null,null,null,null,null,null,null,null,null,7459.99,null,null,null,null,null,null,null,null,null,null,null,null,null,null,null,null,null,null,null,null,null,null,null,null,null,null,null,null,null,null,null,null,null,{"$f":"AVERAGE(F247:CB247)","v":6692.0899999999992},6692.09,33460.449999999997]
["10117212 - 1",246,4,"un","Máquina de solda mini inversor elétrico – 220V - 140 amperes - com alça, garras de solda positiva e negativa, escova e mascara simples",null,null,null,null,null,null,null,null,null,null,700,null,null,null,null,null,null,null,299.89999999999998,null,null,559.55999999999995,null,null,null,null,null,null,null,null,null,null,null,null,null,null,null,null,null,null,null,null,null,null,null,null,null,null,null,null,null,null,null,null,null,null,null,null,null,null,null,null,null,null,null,null,null,null,null,null,null,null,null,null,null,{"$f":"AVERAGE(Y248:CB248,F248:W248)","v":629.78},629.78,2519.12]
["10117212 - 2",247,7,"un","Máquina de solda mini inversor elétrico – 220V - 180 amperes - com alça, garras de solda positiva e negativa, escova e mascara simples",null,null,null,null,null,null,null,null,null,null,1600,null,null,null,null,null,null,null,null,null,1059.9000000000001,null,null,null,null,null,null,null,null,null,null,null,null,null,null,null,null,null,null,null,null,null,null,null,null,null,null,null,null,null,null,null,null,null,null,null,null,null,null,null,null,null,null,null,null,null,null,null,null,null,null,null,null,null,null,{"$f":"AVERAGE(F249:CB249)","v":1329.95},1329.95,9309.65]
["990608014 - 1",248,55,"un","MARRETA MANUAL 1 KG",null,null,null,null,null,null,null,null,null,17.32,70,null,null,null,null,null,null,null,null,null,null,44.03,null,null,null,null,null,null,null,null,null,null,null,null,null,null,null,null,null,null,null,null,null,null,null,null,null,null,null,null,null,null,null,null,null,null,null,null,null,null,null,null,null,null,null,null,null,null,null,null,null,null,null,null,null,{"$f":"AVERAGE(P250:CB250)","v":57.015000000000001},57.02,3136.1000000000004]
["990608015 - 1",249,10,"un","MARTELETE PERFURADOR SDS PLUS 800W 220V 26MM",null,null,null,null,null,null,null,null,null,null,1100,null,null,null,null,null,null,null,499.9,null,null,769.9,null,null,null,null,null,null,null,null,null,null,null,null,null,null,null,null,null,null,null,null,null,null,null,null,null,null,null,null,null,null,null,null,null,null,null,null,null,null,null,null,null,null,null,null,null,null,null,null,null,null,null,null,null,{"$f":"AVERAGE(Q251:CB251,F251:O251)","v":634.9},634.9,6349]
["38012171 - 2",250,38,"un","MARTELO DE BORRACHA MINIMO 470GR",null,null,null,null,null,null,null,null,null,16.079999999999998,40,null,null,null,null,null,null,null,null,null,null,18.329999999999998,null,null,null,null,null,null,null,null,null,null,null,null,null,null,null,null,null,null,null,null,null,null,null,null,null,null,null,null,null,null,null,null,null,null,null,null,null,null,null,null,null,null,null,null,null,null,null,null,null,null,null,null,null,{"$f":"AVERAGE(Q252:CB252,F252:O252)","v":17.204999999999998},17.21,653.98]
["99060050 - 2",251,108,"un","Martelo de unha - com cabo de fibra de vidro emborrachado - tamanho aproximado 290 mm.",null,null,null,null,null,null,null,null,null,24.85,55,null,null,null,null,null,null,null,null,null,88.66,43.43,null,null,null,null,null,null,null,null,null,null,null,null,null,null,null,null,null,null,null,74.989999999999995,null,null,null,null,null,null,null,null,null,null,null,null,null,null,null,null,null,null,null,null,null,null,null,null,null,null,null,null,null,null,null,null,null,{"$f":"AVERAGE(AA253:CB253,P253:Y253,F253:N253)","v":57.806666666666665},57.81,6243.4800000000005]
["58030058 - 2",252,9,"un","Martelo demolidor 30kg, 220 v, sistema antivibração. acompanha \nmaleta. encaixe hexagonal mínimo de 28mm. capacidade mínima \nde remoção 1700kg/h de concreto de dureza média. especificações \ntécnicas: tensão: bivolt; potência mínima de 1700 w; energia de impacto \nmínima: 41 j; encaixe para acessório 28 mm sextavado interior;",null,null,null,null,null,null,null,null,null,null,null,null,null,null,null,null,null,null,null,null,10771.02,8651.2999999999993,null,null,null,null,null,null,null,null,null,null,null,null,null,null,null,null,null,null,null,null,null,null,null,6299,null,null,null,null,null,null,null,null,null,null,null,null,null,null,null,null,null,null,null,null,null,null,null,null,null,null,null,null,null,{"$f":"AVERAGE(F254:CB254)","v":8573.7733333333326},8573.77,77163.930000000008]
["990608016 - 1",253,9,"un","Mini retífica MINIMO DE POTÊNCIA 180W, 220V ACONDICIONADA EM MALETA OU SIMILAR COM ACESSORIOS NO MINIMO 6 DISCO DE CORTE, DISCO DE LIXA PEDRA AMOLADORA ENTRE OUTROS ACESSORIOS, CONTENDO NO TOTAL 25 PECAS OU MAIS",null,null,null,null,null,null,null,null,null,null,640,null,null,null,null,null,null,null,271.89999999999998,null,359.9,null,null,null,null,null,null,null,null,null,null,null,null,null,null,null,null,null,null,null,null,null,null,null,null,null,null,null,null,null,null,null,null,null,null,null,null,null,null,null,null,null,null,null,null,null,null,null,null,null,null,null,null,null,null,{"$f":"AVERAGE(Q255:CB255,F255:O255)","v":315.89999999999998},315.89999999999998,2843.1]
["10119069 - 1",254,16,"un","Morsa / torno de bancada nº 4 - linha profissional – em ferro fundido",null,null,null,null,null,null,null,null,null,145,290,null,null,null,null,null,null,null,219.9,null,null,null,null,null,null,null,null,null,null,null,null,null,null,null,null,null,null,null,null,null,null,null,null,null,null,null,null,null,null,null,null,null,null,null,null,null,null,null,null,null,null,null,null,null,null,null,null,null,null,null,null,null,null,null,null,{"$f":"AVERAGE(P256:CB256,F256:N256)","v":254.95},254.95,4079.2]
["58030073 - 3",255,8,"un","Moto esmeril 6 polegadas minimo 360w com 2 rebolos 36 e 60 grãos",null,null,null,null,null,null,null,null,null,null,330,null,null,null,null,null,null,null,199.9,278.19,null,null,null,null,null,null,null,null,null,null,null,null,null,null,null,null,null,null,null,null,null,null,null,null,null,null,null,null,null,null,null,270.83,null,null,null,null,null,null,null,null,null,null,null,null,null,null,null,null,null,null,null,null,null,null,null,{"$f":"AVERAGE(Q257:CB257,F257:O257)","v":249.64000000000001},249.64,1997.12]
["10119073 - 5",256,24,"un","Motosserra a bateria 18v sabre 35cm com duas baterias de no minimo 5.o AH Lition potência 1100w",null,null,null,null,null,null,null,null,null,null,null,null,null,null,null,null,null,null,4889.8999999999996,null,4221.1099999999997,null,3510.49,null,null,null,null,null,null,null,null,null,null,null,null,null,null,null,null,null,null,null,null,null,null,null,null,null,null,null,null,null,null,null,null,null,null,null,null,null,null,null,null,null,null,null,null,null,null,null,null,null,null,null,null,{"$f":"AVERAGE(F258:CB258)","v":4207.1666666666661},4207.17,100972.08]
["10119073 - 3",257,19,"un","Motosserra a gasolina com sabre de 35 cm minimo de 30.1 CC e potência 1.8 HP",null,null,null,null,null,null,null,null,null,null,null,null,null,null,null,null,null,null,1099.9000000000001,null,1650,1334.29,null,null,null,null,null,null,null,null,null,null,null,null,null,null,null,null,null,null,null,null,null,null,null,null,null,null,null,null,null,null,null,null,null,null,null,null,null,null,null,null,null,null,null,null,null,null,null,null,null,null,null,null,null,{"$f":"AVERAGE(F259:CB259)","v":1361.3966666666668},{"$f":"ROUND(CC259,2)","v":1361.4},{"$f":"CD259*C259","v":25866.600000000002}]
["10119073 - 4",258,19,"un","Motosserra a gasolina com sabre de 45cm 50.2cc potência de 3.5cv",null,null,null,null,null,null,null,null,null,null,null,null,null,null,null,null,null,null,null,null,647.16,891.9,973.57,null,null,null,null,null,null,null,null,null,null,null,null,null,null,null,null,null,null,null,null,null,null,null,null,null,null,null,null,null,null,null,null,null,null,null,null,null,null,null,null,null,null,null,null,null,null,null,null,null,null,null,null,{"$f":"AVERAGE(F260:CB260)","v":837.54333333333341},837.54,15913.259999999998]
["10119073 - 2",259,19,"un","Motosserra a gasolina, mínimo 25 CC, potência mínima 1.2 HP, sabre 12\"",null,null,null,null,null,null,null,null,null,null,null,null,null,null,null,null,null,null,null,null,617.9,null,655.9,null,null,null,null,null,null,null,null,null,null,null,null,null,null,null,null,null,null,null,null,null,null,899,null,null,null,null,null,null,null,null,null,null,null,null,null,null,null,null,null,null,null,null,null,null,null,null,null,null,null,null,null,{"$f":"AVERAGE(F261:CB261)","v":724.26666666666677},724.27,13761.13]
["99060319 - 2",260,23,"un","Multímetro digital",null,null,null,null,null,null,null,null,null,44.44,null,null,null,null,null,null,null,null,40.9,null,null,47,null,null,null,null,null,null,null,null,null,null,null,null,null,null,null,null,null,null,null,null,null,null,null,null,null,null,null,null,null,null,null,null,null,null,null,null,null,null,null,null,null,null,null,null,null,null,null,null,null,null,null,null,null,{"$f":"AVERAGE(F262:CB262)","v":44.113333333333337},44.11,1014.53]
["38012156 - 2",261,27,"un","NIVEL DE ALUMINIO 3 BOLHAS 40 (1M)",null,null,null,null,null,null,null,null,null,34.049999999999997,45,null,null,null,null,null,null,null,34.9,null,null,null,null,null,null,null,null,null,null,null,null,null,null,null,null,null,null,null,null,null,null,null,null,null,null,null,null,null,null,null,25.89,null,null,null,null,null,null,null,null,null,null,null,null,null,null,null,null,null,null,null,null,null,null,null,null,{"$f":"AVERAGE(Q263:CB263,F263:O263)","v":31.613333333333333},31.61,853.47]
["990608017 - 1",262,92,"un","PA AJUNTADEIRA BICO VD102-2 C/CABO",null,null,null,null,null,null,null,null,null,33.76,67,null,null,null,null,null,null,null,68.900000000000006,null,62.29,null,60.58,null,null,null,null,null,null,null,null,null,null,null,null,null,null,null,null,null,null,null,null,null,null,null,null,null,null,null,null,null,null,null,null,null,null,null,null,null,null,null,null,null,null,null,null,null,null,null,null,null,null,null,null,{"$f":"AVERAGE(P264:CB264,F264:N264)","v":64.692499999999995},64.69,5951.48]
["990605422 - 1",263,98,"un","Pá quadrada nº 4, em aço, com cabo de madeira 120 cm",null,null,null,null,null,null,null,null,null,35.93,67,null,null,null,null,null,null,null,72.900000000000006,null,69.38,null,64.86,null,null,null,null,null,null,null,null,null,null,null,null,null,null,null,null,null,null,null,null,null,null,null,null,null,null,null,null,null,null,null,null,null,null,null,null,null,null,null,null,null,null,null,null,null,null,null,null,null,null,null,null,{"$f":"AVERAGE(P265:CB265,F265:N265)","v":68.534999999999997},68.540000000000006,6716.920000000001]
["990605467 - 2",264,34,"un","Paquímetro Digital com Orelhas para Medições Internas\nFabricado em aço inoxidável temperado\nParafuso de fixação da medida\nAjuste fino\nZeragem em qualquer ponto\nConversão milímetro/polegada\nTecla liga/desliga\nTecla ABS/INC (conversão absoluto/incremental)\nTecla de PRESET (para ajuste do valor de zeragem)\nFaces de medição internas arredondadas nos bicos inferiores e tipo lâmina nos bicos superiores\nResolução de 0,01mm/.0005\"",null,null,null,null,null,null,null,null,null,699.46,null,null,null,null,null,null,null,null,null,null,56.9,null,null,null,54.9,null,null,null,null,null,null,null,null,null,null,null,null,null,null,null,null,null,null,null,null,null,null,null,null,null,null,null,null,null,null,null,null,null,null,null,null,null,null,null,null,null,null,null,null,null,null,null,null,null,null,{"$f":"AVERAGE(P266:CB266,F266:N266)","v":55.9},55.9,1900.6]
["38041619 - 2",265,31,"kit","Parafusadeira / Furadeira de impacto a bateria com maleta:\nBateria com Tensão minima: 12V\nBateria de LítioTensão do carregador: Bivolt Automático\nCapacidade mínima do mandril: 3/8\" (10mm)\nTipo de mandril: Aperto rápido\nMínimo de Torque máximo/ força de aperto: 25N.m (2,5kgf.m)\nPossibilidade de reversão de giro\n5 brocas de madeira (10mm, 8mm, 6mm, 5mm e 4mm)\n8 brocas de aço rápido (6,5mm, 6mm, 5,5mm, 5mm, 4,5mm, 4mm, 3,5mm e 3mm)\n5 brocas de alvenaria (10mm, 8mm, 6mm, 5mm e 4mm)\n2 brocas chatas para madeira (20mm e 16mm)\n1 escareador\n8 bits 25mm hexalobular (T10, T15, 2 peças T20, 2 peças T25, T30 e T40)\n8 bits 25mm fenda (2 peças SL 4mm, 2 peças SL 5mm, 2 peças SL 5,5mm e 2 peças SL 6,5mm)\n4 bits 25mm allen (H3, H4, H5 e H6)\n10 bits 25mm pozidrive (2 peças PZ0, 2 peças PZ1, 3 peças PZ2 e 3 peças PZ3)\n10 bits 25mm philips (2 peças PH0, 2 peças PH1, 3 peças PH2 e 3 peças PH3)\n2 bits 50mm philips (PH2 e PH3)\n2 bits 50mm pozidrive (PZ2 e PZ3)\n2 bits 50mm hexalobular (T15 e T20)\n2 bits 50mm fenda (SL 5,5 e SL 6,5)\n1 soquete magnético encaixe de 1/4\"\n4 soquetes sextavados magnéticos (13mm, 12mm, 10mm e 8mm)",null,null,null,null,null,null,null,null,null,null,null,null,null,null,null,null,null,null,369,503.69,null,374.89,null,null,null,null,null,null,null,null,null,null,null,null,null,null,null,null,null,null,null,null,null,null,null,null,207.34,null,null,null,null,null,null,null,null,null,null,null,null,null,null,null,null,null,null,null,null,null,null,null,null,null,null,null,null,{"$f":"AVERAGE(BA267:CB267,F267:AY267)","v":415.85999999999996},415.86,12891.66]
["10119080 - 1",266,31,"un","Parafusadeira/furadeira elétrica - duas velocidades – reversível - potência mínima de 400 W - 220 V",null,null,null,null,null,null,null,null,null,null,null,null,null,null,null,null,null,null,379,328.99,null,null,null,null,null,null,null,null,null,null,null,377.89,null,null,null,null,null,null,null,null,null,null,null,null,null,null,null,null,null,null,null,null,null,null,null,null,null,null,null,null,null,null,null,null,null,null,null,null,null,null,null,null,null,null,null,{"$f":"AVERAGE(F268:CB268)","v":361.96000000000004},361.96,11220.76]
["990605423 - 1",267,3500,"un","Parafuso brocante 4 mm",null,null,null,null,null,null,null,null,null,null,null,null,null,null,null,null,null,null,0.10780000000000001,null,0.11,null,null,null,null,null,null,null,null,null,null,null,null,null,null,null,null,null,null,0.16,null,null,null,null,null,null,null,null,null,null,null,null,null,null,null,null,null,null,null,null,null,null,null,null,null,null,null,null,null,null,null,null,null,null,null,{"$f":"AVERAGE(F269:CB269)","v":0.12593333333333334},0.13,455]
["990605423 - 2",268,3400,"un","Parafuso brocante 6 mm",null,null,null,null,null,null,null,null,null,13.15,null,null,null,null,null,null,null,null,null,null,null,null,null,null,null,0.32,null,null,null,null,null,null,null,null,null,null,null,null,null,0.23,null,0.30995,null,null,null,null,null,null,null,null,null,null,null,null,null,null,null,null,null,null,null,null,null,null,null,null,null,null,null,null,null,null,null,null,null,{"$f":"AVERAGE(P270:CB270,F270:N270)","v":0.28665000000000002},0.28999999999999998,985.99999999999989]
[null,269,1150,"un","parafuso sextavado cabeça 11, 50mm de comprimento com bucha",null,null,null,null,null,null,null,null,null,null,null,null,null,null,null,null,null,null,3,null,1.91,1.7424999999999999,null,null,null,null,null,null,null,null,null,null,null,null,null,null,null,null,null,null,null,null,null,null,null,null,null,null,null,null,null,null,null,null,null,null,null,null,null,null,null,null,null,null,null,null,null,null,null,null,null,null,null,null,null,{"$f":"AVERAGE(Y271:CB271,F271:W271)","v":1.8262499999999999},1.83,2104.5]
["10117146 - 2",270,411,"un","Pedra para rebolo 6” - grão fino",null,null,null,null,null,null,null,null,null,null,null,null,null,null,null,null,null,null,null,40.99,34.119999999999997,null,null,null,null,null,null,null,null,null,null,null,null,null,null,null,null,null,null,null,null,null,null,null,null,null,32.5,null,null,null,null,null,null,null,null,null,null,null,null,null,null,null,null,null,null,null,null,null,null,null,null,null,null,null,null,{"$f":"AVERAGE(F272:CB272)","v":35.869999999999997},35.869999999999997,14742.57]
["10117146 - 3",271,411,"un","Pedra para rebolo 6” - grão grosso",null,null,null,null,null,null,null,null,null,null,null,null,null,null,null,null,null,null,37.99,23.09,null,null,null,null,null,null,null,null,null,null,null,null,null,null,null,null,null,null,null,null,null,null,40.5,null,null,null,null,null,null,null,null,null,null,null,null,null,null,null,null,null,null,null,null,null,null,null,null,null,null,null,null,null,null,null,null,{"$f":"AVERAGE(Z273:CB273,F273:X273)","v":39.245000000000005},39.25,16131.75]
["990605424 - 1",272,21,"un","Pedra rotativa para retífica",null,null,null,null,null,null,null,null,null,null,null,null,null,null,null,null,null,3.05,5.99,null,null,null,null,null,null,null,null,null,null,null,null,3.99,null,null,null,null,null,null,null,null,null,null,null,null,null,null,null,null,null,null,null,null,null,null,null,null,null,null,null,null,null,null,null,null,null,null,null,null,null,null,null,null,null,null,null,{"$f":"AVERAGE(F274:CB274)","v":4.3433333333333328},4.34,91.14]
["38012163 - 4",273,85,"un","PICARETA ALVIÃO PONTA E PA LARGA C/CABO DE MADEIRA 90 cm",null,null,null,null,null,null,null,null,null,46.53,null,null,null,null,null,null,null,null,106.9,null,null,78.900000000000006,null,null,null,null,null,null,null,null,null,null,null,null,null,null,null,null,null,null,null,null,null,null,null,null,null,null,null,null,null,null,null,null,null,null,null,null,null,null,null,null,null,null,null,null,null,null,null,null,null,null,null,null,null,{"$f":"AVERAGE(P275:CB275,F275:N275)","v":92.9},92.9,7896.5000000000009]
["80016547 - 2",274,86,"un","Picareta estreita em aço com cabo de madeira redondo 90 cm",null,null,null,null,null,null,null,null,null,51.29,100,null,null,null,null,null,null,null,null,null,null,null,null,null,null,null,null,null,null,null,null,80.900000000000006,null,null,null,null,null,null,null,null,null,null,null,null,null,null,null,null,null,null,null,null,null,null,null,null,null,null,null,null,null,null,null,null,null,null,null,null,null,null,null,null,null,null,null,{"$f":"AVERAGE(Q276:CB276,F276:O276)","v":66.094999999999999},66.099999999999994,5684.5999999999995]
["990608019 - 1",275,358,"un","PINCEL 2.1/2",null,null,null,null,null,null,null,null,null,5.42,19,null,null,null,null,null,null,null,null,7.49,null,null,null,null,null,null,null,null,null,null,null,null,null,null,null,null,null,null,null,null,null,null,null,null,null,null,null,null,null,null,null,null,null,null,null,null,null,null,null,null,null,null,null,null,null,null,null,null,null,null,null,null,null,null,null,{"$f":"AVERAGE(Q277:CB277,F277:O277)","v":6.4550000000000001},6.46,2312.6799999999998]
["990608020 - 1",276,358,"un","PINCEL 395X2",null,null,null,null,null,null,null,null,null,null,11,null,null,null,null,null,null,null,null,null,5.53,null,5.67,null,null,null,null,null,null,null,null,3.19,null,null,null,null,null,null,null,null,null,null,null,null,null,null,null,null,null,null,null,null,null,null,null,null,null,null,null,null,null,null,null,null,null,null,null,null,null,null,null,null,null,null,null,{"$f":"AVERAGE(Q278:CB278,F278:O278)","v":4.796666666666666},4.8,1718.3999999999999]
["990608021 - 1",277,23,"un","PINO DESMONT. MOVEL 2P+T 10A 250V",null,null,null,null,null,null,null,null,null,6,null,null,null,null,null,null,null,null,null,null,4.68,null,5.56,null,null,null,null,null,null,null,null,null,null,null,null,null,null,null,null,null,null,null,null,null,null,null,null,null,null,null,null,null,null,null,null,null,null,null,null,null,null,null,null,null,null,null,null,null,null,null,null,null,null,null,null,{"$f":"AVERAGE(F279:CB279)","v":5.4133333333333331},5.41,124.43]
["990605425 - 3",278,13,"un","PISTOLA DE PINTURA",null,null,null,null,null,null,null,null,null,null,590,null,null,null,null,null,null,null,null,128.99,109.9,null,98.98,null,null,null,null,null,null,null,null,null,null,null,null,null,null,null,null,null,null,null,null,null,null,null,null,null,null,null,null,null,null,null,null,null,null,null,null,null,null,null,null,null,null,null,null,null,null,null,null,null,null,null,null,{"$f":"AVERAGE(Q280:CB280)","v":112.62333333333333},112.62,1464.06]
[null,279,15,"un","Pneu para carrinho de plataforma armazém aro 8 já montado, completo, Medida 4.10/3.50x8, Altura 65mm, Largura 8 centímetros, Roda com rolamento rolete 1 polegada",null,null,null,null,null,null,null,null,null,null,null,null,null,null,null,null,null,null,null,null,127.25,null,166,null,null,null,null,null,null,171.41,null,null,null,null,null,null,null,null,null,null,null,null,null,null,null,null,null,null,null,null,null,null,null,null,null,null,null,null,null,null,null,null,null,null,null,null,null,null,null,null,null,null,null,null,null,{"$f":"AVERAGE(AI281,AB281,Z281)","v":154.88666666666666},154.88999999999999,2323.35]
[null,280,65,"un","Podador/cortador de Galhos altos com grossura minima de 27mm com Serrote Profissional minimo de 12\" e cabo prolongador telescopico metalico, extenssivel a 5m",null,null,null,null,null,null,null,null,null,null,null,null,null,null,null,null,null,null,null,null,243.37,null,263.19,null,null,null,null,null,null,300.2,null,null,null,null,null,null,null,null,null,null,null,null,null,null,null,null,null,null,null,null,null,null,null,null,null,null,null,null,null,null,null,null,null,null,null,null,null,null,null,null,null,null,null,null,null,{"$f":"AVERAGE(AI282,AB282,Z282)","v":268.92},268.92,17479.8]
["990605426 - 1",281,10,"un","Politriz 7” potência mínima 1.300 W, 220 V",null,null,null,null,null,null,null,null,null,459.97,null,null,null,null,null,null,null,null,577.9,578,null,null,null,null,null,null,null,null,null,null,null,null,null,null,null,null,null,null,null,null,null,null,null,null,null,null,null,null,null,null,null,null,699.99,null,null,null,null,null,null,null,null,null,null,null,null,null,null,null,null,null,null,null,null,null,null,{"$f":"AVERAGE(F283:CB283)","v":578.96499999999992},578.97,5789.7000000000007]
["10119097 - 1",282,76,"un","PONTEIRO SDS-PLUS 250MM",null,null,null,null,null,null,null,null,null,null,null,null,null,null,null,null,null,null,null,12.99,15.8,null,null,null,null,null,null,null,null,null,null,null,null,null,null,null,null,null,null,null,null,null,null,null,null,null,null,null,null,null,null,null,11.83,null,null,null,null,null,null,null,null,null,null,null,null,null,null,null,null,null,null,null,null,null,null,{"$f":"AVERAGE(F284:CB284)","v":13.54},13.54,1029.04]
["990610737 - 1",283,68,"un","Ponteiro sextavado 28mm para martelo rompedor",null,null,null,null,null,null,null,null,null,null,null,null,null,null,null,null,null,null,null,null,166.74,null,null,null,null,null,null,null,null,null,null,null,null,null,null,null,null,null,null,null,null,139.99,null,null,null,107.91,null,null,null,null,null,null,null,null,null,null,null,null,null,null,null,null,null,null,null,null,null,null,null,null,null,null,null,null,null,{"$f":"AVERAGE(F285:CB285)","v":138.21333333333334},138.21,9398.2800000000007]
["990608022 - 1",284,34,"un","PROLONGADOR AÇO 3M AJUSTAVEL 1700",null,null,null,null,null,null,null,null,null,null,58,null,null,null,null,null,null,null,null,null,null,null,null,49.9,null,null,null,null,null,null,null,null,null,null,null,null,null,null,44.1,null,null,null,null,null,null,null,null,null,null,null,null,null,null,null,null,null,null,null,null,null,null,null,null,null,null,null,null,null,null,null,null,null,null,null,null,{"$f":"AVERAGE(F286:CB286)","v":50.666666666666664},50.67,1722.78]
["990608040 - 1",285,43,"un","Protetor de Pisos para Pinturas e Reformas Rolo 10 M²",null,null,null,null,null,null,null,null,null,null,280,null,null,null,null,null,null,null,null,null,137.19999999999999,null,null,null,null,null,null,null,null,null,null,null,null,null,null,null,null,null,104,null,null,null,null,null,null,null,null,null,null,null,null,null,null,null,null,null,null,null,null,null,null,null,null,null,null,null,null,null,null,null,null,null,null,null,null,{"$f":"AVERAGE(Q287:CB287,F287:O287)","v":120.6},120.6,5185.8]
["990608023 - 1",286,27,"un","PRUMO DE CENTRO 400g",null,null,null,null,null,null,null,null,null,20.86,35,null,null,null,null,null,null,null,36.9,23.09,null,null,null,null,null,null,null,null,null,null,null,null,null,null,null,null,null,null,null,null,null,null,null,null,null,null,null,null,null,null,null,null,null,null,null,null,null,null,null,null,null,null,null,null,null,null,null,null,null,null,null,null,null,null,null,{"$f":"AVERAGE(F288:CB288)","v":28.962499999999999},28.96,781.92000000000007]
["990605427 - 2",287,29,"un","Prumo de pedreiro 750 g",null,null,null,null,null,null,null,null,null,20.350000000000001,40,null,null,null,null,null,null,null,31.9,null,null,null,null,null,null,null,null,null,null,null,null,null,null,null,null,null,null,null,null,null,null,null,null,null,null,null,null,null,null,null,null,null,null,null,null,null,null,null,null,null,null,null,null,null,null,null,null,null,null,null,null,null,null,null,null,{"$f":"AVERAGE(Q289:CB289,F289:O289)","v":26.125},26.13,757.77]
[null,288,29,"un","Pulverizador Lateral no minimo 4,9 Litros, Com Compressão Prévia, bico com jato regulavel, gatilho com trava para pulverização continua e valvula de alivio de pressão interna",null,null,null,null,null,null,null,null,null,57.12,110,null,null,null,null,null,null,null,91.9,null,null,null,null,null,null,null,null,null,null,null,null,null,null,null,null,null,null,null,null,null,null,null,null,null,null,121.9,null,null,null,null,null,null,null,null,null,null,null,null,null,null,null,null,null,null,null,null,null,null,null,null,null,null,null,null,null,{"$f":"AVERAGE(AY290,X290,P290)","v":107.93333333333334},107.93,3129.9700000000003]
[null,289,40,"un","Pulverizador Manual Plástico com bomba de Compressão Prévia minimo de 1,9L e valvula para alivio de pressão interna",null,null,null,null,null,null,null,null,null,26.6,15,null,null,null,null,null,null,null,null,null,38,null,null,null,null,null,null,null,null,null,null,null,null,null,null,null,null,null,31.9,null,null,null,null,null,null,null,null,null,null,null,null,null,null,null,null,null,null,null,null,null,null,null,null,null,null,null,null,null,null,null,null,null,null,null,null,{"$f":"AVERAGE(AR291,Z291,O291)","v":32.166666666666664},32.17,1286.8000000000002]
["990608024 - 1",290,129,"un","RASTELO/VASSOURA PARA JARDIM GRANDE – PLÁSTICO",null,null,null,null,null,null,null,null,null,14.01,94,null,null,null,null,null,null,null,null,21.49,null,null,null,null,null,null,null,null,null,null,null,null,null,null,null,null,null,null,null,null,null,null,null,null,null,25.56,null,null,null,null,null,null,null,null,null,null,null,null,null,null,null,null,null,null,null,null,null,null,null,null,null,null,null,null,null,{"$f":"AVERAGE(Q292:CB292,F292:O292)","v":20.353333333333332},20.350000000000001,2625.15]
["990604530 - 3",291,1951,"un","Rebite pop 3 mm",null,null,null,null,null,null,null,null,null,null,0.2,null,null,null,null,null,null,null,null,null,0.14000000000000001,null,0.14000000000000001,null,null,null,null,null,null,null,null,null,null,null,null,null,null,null,null,null,null,null,null,null,null,null,null,null,null,null,null,null,null,null,null,null,null,null,null,null,null,null,null,null,null,null,null,null,null,null,null,null,null,null,null,{"$f":"AVERAGE(AB293,Z293,P293)","v":0.16},0.16,312.16000000000003]
["990604530 - 4",292,2001,"un","Rebite pop 4 mm",null,null,null,null,null,null,null,null,null,null,0.2,null,null,null,null,null,null,null,null,null,0.19,null,0.14000000000000001,null,null,null,null,null,null,null,null,null,null,null,null,null,null,null,null,null,null,null,null,null,null,null,null,null,null,null,null,null,null,null,null,null,null,null,null,null,null,null,null,null,null,null,null,null,null,null,null,null,null,null,null,{"$f":"AVERAGE(F294:CB294)","v":0.17666666666666667},0.18,360.18]
["990604530 - 5",293,2001,"un","Rebite pop 5 mm",null,null,null,null,null,null,null,null,null,null,0.2,null,null,null,null,null,null,null,null,null,0.2,null,0.25,null,null,null,null,null,null,null,null,null,null,null,null,null,null,null,null,null,null,null,null,null,null,null,null,null,null,null,null,null,null,null,null,null,null,null,null,null,null,null,null,null,null,null,null,null,null,null,null,null,null,null,null,{"$f":"AVERAGE(F295:CB295)","v":0.21666666666666667},0.22,440.22]
["990604530 - 6",294,2001,"un","Rebite pop 6 mm",null,null,null,null,null,null,null,null,null,null,0.2,null,null,null,null,null,null,null,null,null,0.28000000000000003,null,null,null,null,null,null,null,null,null,null,null,null,null,null,null,null,null,null,null,null,null,null,null,null,null,0.28000000000000003,null,null,null,null,null,null,null,null,null,null,null,null,null,null,null,null,null,null,null,null,null,null,null,null,null,null,null,null,{"$f":"AVERAGE(F296:CB296)","v":0.25333333333333335},0.25,500.25]
["990610734 - 1",295,136,"un","Refil gás butano, conta com lata especial com ranhuras de pressão no caso de emergências. O produto segue a norma internacional En417. Conteúdo 227g",null,null,null,null,null,null,null,null,null,null,null,null,null,null,null,null,null,null,10.9,12.99,14.38,null,null,null,null,null,null,null,null,null,null,null,null,null,null,null,null,null,null,null,null,null,null,null,null,null,null,null,null,null,null,null,null,null,null,null,null,null,null,null,null,null,null,null,null,null,null,null,null,null,null,null,null,null,null,{"$f":"AVERAGE(X297:Z297)","v":12.756666666666668},12.76,1735.36]
[null,296,56,"un","Regador de plantas e jardim com 10 litros",null,null,null,null,null,null,null,null,null,14.73,null,null,null,null,null,null,null,null,null,null,null,16.899999999999999,null,null,null,null,null,null,null,null,null,null,null,null,null,null,null,null,null,null,null,null,null,null,null,26.51,null,null,null,null,null,null,null,null,null,null,null,null,null,null,null,null,null,null,null,null,null,null,null,null,null,null,null,null,null,{"$f":"AVERAGE(AZ298:CB298,F298:AX298)","v":15.815},15.82,885.92000000000007]
["58030044 - 2",297,16,"un","Roçadeira de cardã, central e lateral, com largura de corte mínima 1,60 mt, \nregulagem de altura e roda de apoio traseira.",null,null,null,null,null,null,null,null,null,null,null,null,null,14725,null,13274.68,16044.55,null,null,null,null,null,null,null,null,null,null,null,null,null,null,null,null,null,null,null,null,null,null,null,null,null,null,null,null,null,null,null,null,null,null,null,null,null,null,null,null,null,null,null,null,null,null,null,null,null,null,null,null,null,null,null,null,null,null,{"$f":"AVERAGE(F299:CB299)","v":14681.409999999998},14681.41,234902.56]
["10119098 - 1",298,22,"un","Roçadeira multifuncional - a gasolina, lateral, mínimo 52 cilindradas e 2.1 HP. Deverá acompanhar os seguintes acessórios: serra para poda, aparador de galhos, serra de corte circular, lâmina para corte com 03 pontas e bobina de nylon.",null,null,null,null,null,null,null,null,null,null,null,null,null,null,null,null,null,null,null,null,1407.37,1195.5,null,null,null,null,null,null,null,null,null,null,null,null,null,null,null,null,null,null,null,null,null,null,null,null,null,null,null,null,null,null,null,null,null,null,null,null,null,null,null,null,944.1,null,null,null,null,null,null,null,null,null,null,null,null,{"$f":"AVERAGE(F300:CB300)","v":1182.3233333333333},1182.32,26011.039999999997]
["990608025 - 1",299,120,"un","ROLO ANTIGOTA POLIAMIDA",null,null,null,null,null,null,null,null,null,null,38,null,null,null,null,null,null,null,null,null,43.9,null,38.159999999999997,null,null,null,null,null,null,null,null,null,null,null,null,null,null,null,null,null,null,null,null,null,null,null,null,null,null,null,null,null,null,null,null,null,null,null,null,null,null,null,null,null,null,null,null,null,null,null,null,null,null,null,null,{"$f":"AVERAGE(P301:AB301)","v":40.020000000000003},40.020000000000003,4802.4000000000005]
["990608026 - 1",300,120,"un","ROLO LÃ ANTIGOTA 321/10",null,null,null,null,null,null,null,null,null,12.97,34,null,null,null,null,null,null,null,null,null,null,null,null,null,null,null,null,null,null,null,null,26.9,null,null,null,null,null,null,null,null,null,null,null,null,null,null,null,null,null,null,null,null,null,null,null,null,null,null,null,null,null,null,null,null,null,null,null,null,null,null,null,null,null,null,null,{"$f":"AVERAGE(AK302,P302)","v":30.45},30.45,3654]
["990605429 - 5",301,14,"un","SERRA CIRCULAR 5007N 220V 185MM 1400W 7 1/4 SCV1100",null,null,null,null,null,null,null,null,null,null,null,null,null,null,null,null,null,null,null,null,1040.69,702.24,null,null,null,null,null,null,null,null,null,null,null,null,null,null,null,null,null,null,null,null,null,null,null,949.81,null,null,null,null,null,null,null,null,null,null,null,null,null,null,null,null,null,null,null,null,null,null,null,null,null,null,null,null,null,{"$f":"AVERAGE(AY303,Z303:AA303)","v":897.57999999999993},897.58,12566.12]
["990605429 - 1",302,14,"un","Serra circular para madeira 7.1/4 – potência mínima 1.100W - 220V",null,null,null,null,null,null,null,null,null,595.58000000000004,null,null,null,null,null,null,null,null,null,null,820.68,null,null,null,null,null,null,null,null,null,null,null,null,null,null,null,null,null,null,null,null,579.99,null,null,null,null,null,null,null,null,null,null,null,null,null,null,null,null,null,null,null,null,null,null,null,null,null,null,null,null,null,null,null,null,null,{"$f":"AVERAGE(AU304,Z304,O304)","v":665.41666666666663},665.42,9315.8799999999992]
["990608027 - 1",303,36,"un","SERRA MANUAL BIMET 24",null,null,null,null,null,null,null,null,null,7.5,55,null,null,null,null,null,null,null,10.9,null,null,null,null,null,null,null,null,null,null,null,null,null,null,null,null,null,null,null,null,null,null,10.77,null,null,null,null,null,null,null,null,null,null,null,null,null,null,null,null,null,null,null,null,null,null,null,null,null,null,null,null,null,null,null,null,null,{"$f":"AVERAGE(AU305,X305,O305)","v":9.7233333333333345},9.7200000000000006,349.92]
["10119102 - 1",304,9,"un","Serra mármore – potência mínima 1.500W – 220V",null,null,null,null,null,null,null,null,null,326.54000000000002,650,null,null,null,null,null,null,null,null,428.99,null,432.9,null,null,null,null,null,null,null,null,null,null,null,null,null,null,null,null,null,null,null,null,null,null,null,null,null,null,null,null,null,null,null,null,null,null,null,null,null,null,null,null,null,null,null,null,null,null,null,null,null,null,null,null,null,{"$f":"AVERAGE(Y306:AA306,O306)","v":396.14333333333337},396.14,3565.2599999999998]
["10119629 - 1",305,11,"un","Serra tico-tico – potência mínima 450W – 220V, 06 velocidades - base regulável até 45º, com marcação - trava no gatilho - capacidade de corte: aço 5 mm, alumínio 5 mm, madeira 55 mm - velocidade de 0 a 3000 golpes por minuto - com maleta.",null,null,null,null,null,null,null,null,null,462.28,610,null,null,null,null,null,null,null,null,null,null,629.99,null,null,null,null,null,null,null,null,null,null,null,null,null,null,null,null,null,null,null,null,null,null,null,null,null,null,null,null,null,null,null,null,null,null,null,null,null,null,null,null,null,null,null,null,null,null,null,null,null,null,null,null,null,{"$f":"AVERAGE(AA307,O307:P307)","v":567.42333333333329},567.41999999999996,6241.62]
["990608028 - 1",306,44,"un","SERROTE COM LÂMINA EM AÇO 22 CABO DE MADEIRA ERGONÔMICO E ENVERNIZADO",null,null,null,null,null,null,null,null,null,40.840000000000003,null,null,null,null,null,null,null,null,null,null,47.03,null,null,null,null,null,null,null,null,null,null,63.9,null,null,null,null,null,null,null,null,null,null,null,null,null,null,null,null,null,null,null,null,null,null,null,null,null,null,null,null,null,null,null,null,null,null,null,null,null,null,null,null,null,null,null,{"$f":"AVERAGE(AK308,Z308,O308)","v":50.59},50.59,2225.96]
["990608029 - 1",307,43,"un","SERROTE COM LÂMINA EM AÇO 24 CABO DE MADEIRA ERGONÔMICO E ENVERNIZADO",null,null,null,null,null,null,null,null,null,43.62,null,null,null,null,null,null,null,null,null,null,62,null,44.47,null,null,null,null,null,null,null,null,null,null,null,null,null,null,null,null,null,null,null,null,null,null,null,null,null,null,null,null,null,null,null,null,null,null,null,null,null,null,null,null,null,null,null,null,null,null,null,null,null,null,null,null,{"$f":"AVERAGE(Z309:AB309,O309)","v":50.03},50.03,2151.29]
["10119846 - 2",308,33,"un","Soprador de folhas costal – motor 02 tempos a gasolina, potência mínima 63 CC, refrigerado a ar",null,null,null,null,null,null,null,1249.9000000000001,null,null,null,null,null,null,null,null,null,null,999.9,null,null,null,null,null,null,null,null,null,null,null,null,null,null,null,null,null,null,null,null,null,null,null,null,null,null,null,null,null,null,null,null,null,null,null,null,null,null,null,null,null,null,null,null,null,null,null,null,null,null,null,null,null,null,null,null,{"$f":"AVERAGE(M310:X310)","v":1124.9000000000001},1124.9000000000001,37121.700000000004]
["990610736 - 1",309,8,"un","Talha Guincho Elétrica Capacidade 1t a 2t Elevação 6/12 Metros 220v",null,null,null,null,null,null,null,null,null,null,null,null,null,null,null,null,null,null,1890,null,1266.5,null,null,null,null,null,null,null,null,null,null,null,null,null,null,null,null,null,null,null,null,null,null,null,null,null,null,null,null,null,null,null,null,null,null,null,null,null,null,null,null,null,1214.0999999999999,null,null,null,null,null,null,null,null,null,null,null,null,{"$f":"AVERAGE(BP311,X311:Z311)","v":1456.8666666666668},1456.87,11654.96]
["38012168 - 1",310,28,"un","TALHADEIRA MANUAL",null,null,null,null,null,null,null,null,null,20.83,25,null,null,null,null,null,null,null,24,null,null,null,null,null,null,null,null,null,null,null,null,null,null,null,null,null,null,null,null,null,null,null,null,null,null,null,null,null,null,null,null,null,null,null,null,null,null,null,null,null,null,null,null,null,null,null,null,null,null,null,null,null,null,null,null,{"$f":"AVERAGE(O312:X312)","v":23.276666666666667},23.28,651.84]
["990608030 - 1",311,38,"un","TALHADEIRA SDS PLUS 40 X 250MM",null,null,null,null,null,null,null,null,null,9.5,35,null,null,null,null,null,null,null,20.49,null,null,null,null,null,null,null,null,null,null,null,null,null,null,null,null,null,null,null,null,null,null,null,null,null,null,null,null,null,null,null,null,null,null,null,null,null,null,null,null,null,null,null,null,null,null,null,null,null,null,null,null,null,null,null,null,{"$f":"AVERAGE(P313:X313)","v":27.744999999999997},27.75,1054.5]
["990608039 - 1",312,79,"rl","Tela laranja 1,2m x 50m para isolamento de obras",null,null,null,null,null,null,null,null,null,null,null,null,null,null,null,null,null,null,null,null,80,78.989999999999995,null,null,null,null,null,null,null,null,null,null,null,null,null,null,null,null,null,null,null,null,null,null,null,69.92,null,null,null,null,null,null,null,null,null,null,null,null,null,null,null,null,null,null,null,null,null,null,null,null,null,null,null,null,null,{"$f":"AVERAGE(AY314,Z314:AA314)","v":76.303333333333342},76.3,6027.7]
[null,313,61,"un","Tesoura de poda para raleio, profissional com no minimo 19,5cm de comprimento e 5,1cm de largura, confeccionado em aluminio com lamina em aço, com lamina de corte reto.",null,null,null,null,null,null,null,null,null,null,null,null,null,null,null,null,null,null,null,null,94.68,93.1,105.44,null,null,null,null,null,null,null,null,null,null,null,null,null,null,null,null,null,null,null,null,null,null,null,null,null,null,null,null,null,null,null,null,null,null,null,null,null,null,null,null,null,null,null,null,null,null,null,null,null,null,null,null,{"$f":"AVERAGE(Z315:AB315)","v":97.740000000000009},97.74,5962.1399999999994]
["38012167 - 4",314,56,"un","Tesoura de Poda Profissional com Lâmina Metálica e Cabo Emborrachado. 20 x 6 x 2 cm (aproximado)",null,null,null,null,null,null,null,null,null,null,null,null,null,null,null,null,null,null,null,null,21,22.9,26.8,null,null,null,null,null,null,null,null,null,null,null,null,null,null,null,null,null,null,null,null,null,null,null,null,null,null,null,null,null,null,null,null,null,null,null,null,null,null,null,null,null,null,null,null,null,null,null,null,null,null,null,null,{"$f":"AVERAGE(Z316:AB316)","v":23.566666666666666},23.57,1319.92]
["38012167 - 5",315,53,"un","Tesourão de Poda Tipo Bypass. Cabo Extensível 45 a 75 cm (aproximado). 75 x 25 x 5 cm (aproximado)",null,null,null,null,null,null,null,null,null,182.5,null,null,null,null,null,null,null,null,null,null,null,152.80000000000001,null,null,null,null,null,null,null,null,null,null,null,null,null,null,null,null,null,null,null,null,null,null,null,null,null,null,null,null,null,null,null,null,null,null,null,null,null,null,null,null,null,null,null,null,null,null,null,null,null,null,null,null,null,{"$f":"AVERAGE(AA317,O317)","v":167.65},167.65,8885.4500000000007]
["990610735 - 1",316,3,"un","Tocha de solda resfriada TIG",null,null,null,null,null,null,null,null,null,null,null,null,null,null,null,null,null,null,299.89999999999998,null,344.46,null,299,null,null,null,null,null,null,null,null,null,null,null,null,null,null,null,null,null,null,null,null,null,null,null,null,null,null,null,null,null,null,null,null,null,null,null,null,null,null,null,null,null,null,null,null,null,null,null,null,null,null,null,null,{"$f":"AVERAGE(X318:AB318)","v":314.45333333333332},314.45,943.34999999999991]
["38012152 - 1",317,34,"un","TORQUES ARMADOR 12",null,null,null,null,null,null,null,null,null,40.33,40,null,null,null,null,null,null,null,null,null,null,37.090000000000003,null,null,null,null,null,null,null,null,null,null,null,null,null,null,null,null,null,null,null,null,null,null,null,null,null,null,null,null,null,null,null,null,null,null,null,null,null,null,null,null,null,null,null,null,null,null,null,null,null,null,null,null,null,{"$f":"AVERAGE(AA319,O319:P319)","v":39.14},39.14,1330.76]
["990605432 - 1",318,12,"un","Torquímetro de estalo - encaixe 1/2\" – mínimo de 7 a 35 kgf.m",null,null,null,null,null,null,null,null,null,null,null,null,null,null,null,null,null,null,1249.9000000000001,1399.09,null,null,null,null,null,null,null,null,null,null,null,null,null,null,null,null,null,null,null,null,null,null,null,null,null,null,null,null,null,null,null,null,null,null,null,null,null,null,null,null,null,null,null,null,null,null,null,null,null,null,null,null,null,null,null,{"$f":"AVERAGE(X320:Y320)","v":1324.4949999999999},1324.5,15894]
["99060113 - 5",319,96,"un","Trena – 10 m x 25 mm – em aço – corpo plástico – com freio",null,null,null,null,null,null,null,null,null,22.41,50,null,null,null,null,null,null,null,16.899999999999999,null,null,24.1,null,null,null,null,null,null,null,null,null,null,null,null,null,null,null,null,null,null,null,null,null,null,null,null,null,null,null,null,null,null,null,null,null,null,null,null,null,null,null,null,null,null,null,null,null,null,null,null,null,null,null,null,null,{"$f":"AVERAGE(X321:AA321,O321)","v":21.136666666666667},21.14,2029.44]
["990605433 - 1",320,22,"un","Trena a laser com leitura mínima de 40 metros, carcaça robusta, à prova de impactos, com classe de proteção IP54, certificação ISO, díodo laser: 635 NM, < 1 mW - faixa de medição: 0,15 – 40,00 - classe de laser: 2 - tempo de medição máx.: 4 s - alimentação elétrica: 2 x 1,5 v lr03 (AAA) - dispositivo de desconexão automática: 5 min - peso aproximado: 0.09 kg - unidades de medição: m/cm, pés/polegada - capacidade da memória (valores): 10 - duração da bateria, medições individuais, aproximado: 5,000.",null,null,null,null,null,null,null,null,null,null,300,null,null,null,null,null,null,null,499.9,438.99,null,399.9,null,null,null,null,null,null,null,null,null,null,null,null,null,null,null,null,null,null,null,null,null,null,null,null,null,null,null,null,null,null,null,null,null,null,null,null,null,null,null,null,null,null,null,null,null,null,null,null,null,null,null,null,null,{"$f":"AVERAGE(P322:AA322)","v":409.69749999999999},409.7,9013.4]
["990605433 - 2",321,7,"un","Trena De Roda modelo Digital, BRAÇO Em ALUMÍNIO Com Descanso. Display Lcd Com 6 DÍGITOS E BOTÃO Para/Zerar (Reset) A Medida, Permite Leituras ATÉ 99.999,9 Metros (99,9999 Km) Sem Reset. Precisão de 0,5 mm, com Cálculo área , Conversão de unidades, Desligamento automático, Leituras no escuro Painel de controle no cabo, Precisão de medição 99% Roda inteligente.",null,null,null,null,null,null,null,null,null,null,null,null,null,null,null,null,null,null,null,null,396,435,352.5,null,null,null,null,null,null,null,null,null,null,null,null,null,null,null,null,null,null,null,null,null,null,null,null,null,null,null,null,null,null,null,null,null,null,null,null,null,null,null,null,null,null,null,null,null,null,null,null,null,null,null,null,{"$f":"AVERAGE(Z323:AB323)","v":394.5},{"$f":"ROUND(CC323,2)","v":394.5},{"$f":"CD323*C323","v":2761.5}]
["99060113 - 2",322,31,"un","Trena longa com, no mínimo, 50 metros, fita em fibra de vidro de alta resistência, caixa plástica aberta (ABS). Manivela para recolhimento da fita. Clipe metálico na ponta da fita. Cabo ergonômico. Largura da fita: 12.5 mm. Graduação: mm/pol. Linha profissional",null,null,null,null,null,null,null,null,null,69.27,100,null,null,null,null,null,null,null,null,null,null,null,null,null,null,null,null,null,null,null,null,null,null,null,null,null,null,null,null,null,null,72.989999999999995,null,null,null,null,null,null,null,null,null,null,null,null,null,null,null,null,null,null,null,null,null,null,null,null,null,null,null,null,null,null,null,null,null,{"$f":"AVERAGE(AU324,O324:P324)","v":80.75333333333333},80.75,2503.25]
["99060113 - 6",323,36,"un","TRENA STANDARD 5M/16FT X ¾",null,null,null,null,null,null,null,null,null,null,null,null,null,null,null,null,null,null,19.899999999999999,null,36.9,18.989999999999998,null,null,null,null,null,null,null,null,null,null,null,null,null,null,null,null,null,null,null,null,null,null,null,null,null,null,null,null,null,null,null,null,null,null,null,null,null,null,null,null,null,null,null,null,null,null,null,null,null,null,null,null,null,{"$f":"AVERAGE(AA325,X325)","v":19.445},19.45,700.19999999999993]
["10118138 - 2",324,116,"un","Vassourão tipo gari reforçado, cepa plástica com aproximadamente 40 x 10,5 x 6 cm, cerdas de pet 0,8 mm, cabo de madeira cru 1,40 m x 28 mm",null,null,null,null,null,null,null,null,null,30.11,35,null,null,null,null,null,null,null,null,null,null,null,null,null,null,null,null,null,null,null,null,null,null,null,null,null,null,null,null,null,null,null,null,null,null,null,null,null,null,null,null,null,null,null,null,null,null,null,null,null,null,null,null,null,null,null,null,null,null,null,null,null,null,null,null,{"$f":"AVERAGE(O326:P326)","v":32.555},32.56,3776.96]